{"text_format":"1","workbook":"xlsx","n_sheets":2,"sheets":["KarmaYem","Rapor"],"not_rendered":{"charts":0,"images":0,"macros":1,"external_links":0,"defined_names":263,"comments":1,"pivot_tables":0},"unopened":[],"bounds":{"document_bytes":16777216,"sheet_cells":100000,"rows_first":2000,"rows_last":500,"rows_between":2000,"halvings":0,"cell_chars":16384,"cell_head_chars":4096},"cells_cut":0,"cells_raw":0,"read":"whole","date_system":"1900"}

{"sheet":"KarmaYem","index":0,"n_rows":148,"n_cols":81,"rows_kept":148,"cut":false,"hidden":false,"merged":[[26,20,27,20],[29,18,30,18],[29,19,30,19],[29,20,30,20],[2,14,4,17],[5,14,5,17],[26,18,27,18],[26,19,27,19],[51,13,53,13],[20,8,20,10],[0,7,0,9],[2,7,2,8],[2,1,3,1],[0,4,0,6],[19,6,19,7],[20,6,20,7],[2,4,2,5]]}
[null,"EN DÜŞÜK MALİYETLİ KARMA YEM",null,null,"Coşkun & İnal & İnal",null,null,{"$f":"TODAY()","v":"2024-11-12"},null,null,null,null,null,null,null,null,null,null,null,null,null,null,null,null,null,null,null,"Adres","Rasyonlar","Rasyon Kayıt Bölümü"]
[null,"HAZIRLAMA PROGRAMI","MİKTAR","Fiyat",null,null,null,null,null,null,null,null,null,null,null,null,null,null,null,null,null,null,null,null,null,null,null,"AE",null,"Diğer bilgiler",1,2,3,4,5,6,7,8,9,10,{"$f":"AN2+1","v":11},{"$f":"AO2+1","v":12},13,14,15,16,17,18,19,20,21,22,23,24,25,26,27,28,29,30]
[null,"VERİLECEK YEMLER",{"$f":"IF(C4<100*0.9999999,\"EKSİK\",IF(C4>100*1.00000001,\"FAZLA\",\"TAMAM\"))","v":"TAMAM"},"₺/kg","Yemler için",null,null,"İHTİYAÇ",null,null,null,null,null,null,"Selçuk Üniversitesi Veteriner Fakültesi Rasyon Hazırlama Programları",null,null,null,null,null,null,null,null,null,null,null,null,"AF",null,"Rasyonun Adı :"]
[null,null,{"$f":"SUM(Rapor!W5:W31)","v":100},{"$f":"(C5*D5+C6*D6+C7*D7+C8*D8+C9*D9+C10*D10+C11*D11+C12*D12+C13*D13+C14*D14+C15*D15+C16*D16+C17*D17+C18*D18+C19*D19+C20*D20+C21*D21+C22*D22+C23*D23+C24*D24+C25*D25+C26*D26+C27*D27+C28*D28+C29*D29+C30*D30+C31*D31)/100","v":8.9901625148338251},"En az","En çok","BESİN MADDESİ","En az","En çok","RASYON","SONUÇ","KM'de",null,null,null,null,null,null,null,null,null,null,null,null,null,null,null,"AG",null,"Rasyonun hazırlandığı tarih :",null,null,null,null,null,null,null,null,null,null,null,null,null,null,null,null,null,null,null,null,null,null,null,null,null,null,null,null,null,null,null,null,null,null,null,null,null,null,null,null,null,null,null,null,null,null,null,null,null,"Mikser"]
[1,"MISIR, 3100",41.758848377124828,9.5,0,70,{"$f":"Rapor!G4","v":"KM, %"},88,null,{"$f":"Rapor!J4","v":89.033825193404823},null,null,null,null,null,null,null,null,null,null,null,null,null,null,null,null,null,"AH",null,"Hayvan sahibinin adı soyadı :",null,null,null,null,null,null,null,null,null,null,null,null,null,null,null,null,null,null,null,null,null,null,null,null,null,null,null,null,null,null,null,null,null,null,null,null,null,null,null,null,null,null,null,null,null,null,null,null,10,60.273664489891772,1205.47]
[1,"ARPA",40,8.5,0,60,{"$f":"Rapor!G5","v":"HP, %"},12,{"$f":"H6*1.005","v":12.059999999999999},{"$f":"Rapor!J5","v":12.000000004404747},{"$f":"Rapor!L5","v":"TAMAM"},{"$f":"Rapor!K5","v":13.478023636901591},null,null,"Fİ  &  Şİ  &  BC",null,null,null,null,null,null,null,null,null,null,null,null,"AI",null,"Rasyonu Hazırlayanın Adı Soyadı :",null,null,null,null,null,null,null,null,null,null,null,null,null,null,null,null,null,null,null,null,null,null,null,null,null,null,null,null,null,null,null,null,null,null,null,null,null,null,null,null,null,null,null,null,null,null,null,null,10,14.690129532921095,293.8]
[1,"BUĞDAY KEPEĞİ, KABA",10.617003580231886,7,0,15,{"$f":"Rapor!G6","v":"ME, Mcal/kg"},2.75,{"$f":"H7*1.005","v":2.7637499999999999},{"$f":"Rapor!J6","v":2.7500000016781301},{"$f":"Rapor!L6","v":"TAMAM"},{"$f":"Rapor!K6","v":3.0887137508743545},null,null,null,null,null,null,null,null,null,null,null,null,null,null,null,"AJ",null,"Adresi :",null,null,null,null,null,null,null,null,null,null,null,null,null,null,null,null,null,null,null,null,null,null,null,null,null,null,null,null,null,null,null,null,null,null,null,null,null,null,null,null,null,null,null,null,null,null,null,null,30,0,0]
[2,"SOYA KÜSPESİ, SOLVENT,  44 HP",4.498123236510625,17,0,40,{"$f":"Rapor!G7","v":"Ca, %"},0.6,1.6,{"$f":"Rapor!J7","v":0.86194414397735664},{"$f":"Rapor!L7","v":"TAMAM"},{"$f":"Rapor!K7","v":0.96810862849595414},null,null,null,null,null,null,null,null,null,null,null,null,null,null,null,"AK",null,"Telefonu :",null,null,null,null,null,null,null,null,null,null,null,null,null,null,null,null,null,null,null,null,null,null,null,null,null,null,null,null,null,null,null,null,null,null,null,null,null,null,null,null,null,null,null,null,null,null,null,null,20,22.071834907403407,441.44]
[3,"MERMER TOZU",1.9120692183875301,2,0,7,{"$f":"Rapor!G8","v":"P, %"},0.4,null,{"$f":"Rapor!J8","v":0.40099999986486234},{"$f":"Rapor!L8","v":"TAMAM"},{"$f":"Rapor!K8","v":0.45039062288269111},null,null,null,null,null,null,null,null,null,null,null,null,null,null,null,"AL",null,"Hayvan Tanımlama Bilgisi Girişi",null,null,null,null,null,null,null,null,null,null,null,null,null,null,null,null,null,null,null,null,null,null,null,null,null,null,null,null,null,null,null,null,null,null,null,null,null,null,null,null,null,null,null,null,null,null,null,null,13.269927361252103,1.6092661463386058,32.19]
[3,"TUZ",0.96395558774514023,1.5,0.25,1,{"$f":"Rapor!G9","v":"Na, %"},0.1,0.4,{"$f":"Rapor!J9","v":0.40100000000000013},{"$f":"Rapor!L9","v":"TAMAM"},{"$f":"Rapor!K9","v":0.45039062303447364},null,null,null,null,null,null,null,null,null,null,null,null,null,null,null,"AM",null,"Hayvan Türü :",null,null,null,null,null,null,null,null,null,null,null,null,null,null,null,null,null,null,null,null,null,null,null,null,null,null,null,null,null,null,null,null,null,null,null,null,null,null,null,null,null,null,null,null,null,null,null,null,2.5989714329872391,0.6661299064853744,13.32]
[3,"VİTAMİN-MİNERAL KARMASI",0.25,25,0.25,0.25,{"$f":"Rapor!G10","v":"HS, %"},1.2000000000000002,12,{"$f":"Rapor!J10","v":4.3269822516763163},{"$f":"Rapor!L10","v":"TAMAM"},{"$f":"Rapor!K10","v":4.8599307535950249},null,null,null,null,null,null,null,null,null,null,null,null,null,null,null,"AN",null,"Hayvan / Yem Tipi :",null,null,null,null,null,null,null,null,null,null,null,null,null,null,null,null,null,null,null,null,null,null,null,null,null,null,null,null,null,null,null,null,null,null,null,null,null,null,null,null,null,null,null,null,null,null,null,null,1,0.43897501695978386,8.7799999999999994]
[3,"DİKALSİYUM FOSFAT (DCP)",0,35,0,3,{"$f":"Rapor!G11","v":"HK, %"},null,9,{"$f":"Rapor!J11","v":5.3575546370413427},{"$f":"Rapor!L11","v":"TAMAM"},{"$f":"Rapor!K11","v":6.0174373339608049},null,"Hayvanın türü :","SIĞIR",null,null,null,null,null,null,null,null,null,null,null,null,"AO",null,null,null,null,null,null,null,null,null,null,null,null,null,null,null,null,null,null,null,null,null,null,null,null,null,null,null,null,null,null,null,null,null,null,null,null,null,null,null,null,null,null,null,null,null,null,null,null,null,null,0.35,0.25,5]
[null,null,0,null,0,0,{"$f":"Rapor!G12","v":"HY, %"},null,null,{"$f":"Rapor!J12","v":2.8091165287316362},{"$f":"Rapor!L12","v":""},{"$f":"Rapor!K12","v":3.1551115799298732},null,"Karma yem adı :","DÜVE YEMİ 1",null,null,null,null,null,null,null,null,null,null,null,null,"AP",null,"Yemlerin KODU",null,null,null,null,null,null,null,null,null,null,null,null,null,null,null,null,null,null,null,null,null,null,null,null,null,null,null,null,null,null,null,null,null,null,null,null,null,null,null,null,null,null,null,null,null,null,null,null,0,0,0]
[null,null,0,null,0,0,{"$f":"Rapor!G13","v":"NDF, %"},null,null,{"$f":"Rapor!J13","v":16.008121191891366},null,{"$f":"Rapor!K13","v":17.979819643958383},null,null,null,null,null,null,null,null,null,null,null,null,null,null,null,"AQ",null,null,null,null,null,null,null,null,null,null,null,null,null,null,null,null,null,null,null,null,null,null,null,null,null,null,null,null,null,null,null,null,null,null,null,null,null,null,null,null,null,null,null,null,null,null,null,null,null,null,0,0,0]
[null,null,0,null,0,0,{"$f":"Rapor!G14","v":"ADF, %"},null,null,{"$f":"Rapor!J14","v":5.6876495538403589},null,{"$f":"Rapor!K14","v":6.3881895914112325},null,null,null,null,null,null,null,null,null,null,null,null,null,null,null,"AR",null,null,null,null,null,null,null,null,null,null,null,null,null,null,null,null,null,null,null,null,null,null,null,null,null,null,null,null,null,null,null,null,null,null,null,null,null,null,null,null,null,null,null,null,null,null,null,null,null,null,0,0,0]
[null,null,0,null,0,0,{"$f":"Rapor!G15","v":"Bypass Prot,% HP"},null,null,{"$f":"Rapor!J15","v":26.122429844182086},null,{"$f":"Rapor!K15","v":29.339893896996248},null,null,null,null,null,null,null,null,null,null,null,null,null,null,null,"AS",null,null,null,null,null,null,null,null,null,null,null,null,null,null,null,null,null,null,null,null,null,null,null,null,null,null,null,null,null,null,null,null,null,null,null,null,null,null,null,null,null,null,null,null,null,null,null,null,null,null,0,0,0]
[null,null,0,null,0,0,{"$f":"Rapor!G16","v":"Nişasta, %"},null,null,{"$f":"Rapor!J16","v":50.112238713759147},null,{"$f":"Rapor!K16","v":56.284494802848485},null,null,null,null,null,null,null,null,null,null,null,null,null,null,null,"AT",null,null,null,null,null,null,null,null,null,null,null,null,null,null,null,null,null,null,null,null,null,null,null,null,null,null,null,null,null,null,null,null,null,null,null,null,null,null,null,null,null,null,null,null,null,null,null,null,null,null,0,0,0]
[null,null,0,null,0,0,{"$f":"Rapor!G17","v":"TSBM, %"},null,null,{"$f":"Rapor!J17","v":71.623091152723887},null,{"$f":"Rapor!K17","v":80.444809595835906},null,null,null,null,null,null,null,null,null,null,null,null,null,null,null,"AU",null,null,null,null,null,null,null,null,null,null,null,null,null,null,null,null,null,null,null,null,null,null,null,null,null,null,null,null,null,null,null,null,null,null,null,null,null,null,null,null,null,null,null,null,null,null,null,null,null,null,0,0,0]
[null,null,0,null,0,0,null,null,null,null,null,null,null,null,null,null,null,null,null,null,null,null,null,null,null,null,null,"AV",null,null,null,null,null,null,null,null,null,null,null,null,null,null,null,null,null,null,null,null,null,null,null,null,null,null,null,null,null,null,null,null,null,null,null,null,null,null,null,null,null,null,null,null,null,null,null,null,null,null,0,0,0]
[null,null,0,null,0,0,"Hayvan Türü :",null,"KOYUN",null,null,null,null,null,null,null,null,null,null,null,null,null,null,null,null,null,null,"AW",null,null,null,null,null,null,null,null,null,null,null,null,null,null,null,null,null,null,null,null,null,null,null,null,null,null,null,null,null,null,null,null,null,null,null,null,null,null,null,null,null,null,null,null,null,null,null,null,null,null,0,0,0]
[null,null,0,null,0,0,"Hayvan / Yem Tipi :",null,"TOKLU BESİ YEMİ",null,null,null,null,null,null,null,null,null,null,null,null,null,null,null,null,null,null,"AX",null,null,null,null,null,null,null,null,null,null,null,null,null,null,null,null,null,null,null,null,null,null,null,null,null,null,null,null,null,null,null,null,null,null,null,null,null,null,null,null,null,null,null,null,null,null,null,null,null,null,0,0,0]
[null,null,0,null,0,0,null,null,null,null,null,null,null,"Yem maddesi","%","Mikser",null,null,null,null,null,null,null,null,null,null,null,"AY",null,null,null,null,null,null,null,null,null,null,null,null,null,null,null,null,null,null,null,null,null,null,null,null,null,null,null,null,null,null,null,null,null,null,null,null,null,null,null,null,null,null,null,null,null,null,null,null,null,null,0,0,0]
[null,null,0,null,0,0,null,null,null,null,null,null,null,"MISIR, 3100",47.421584860566128,null,"Besin Mad.","İhtiyaç",{"$f":"J4","v":"RASYON"},{"$f":"L4","v":"KM'de"},{"$f":"K4","v":"SONUÇ"},null,null,null,null,null,null,"AZ",null,null,null,null,null,null,null,null,null,null,null,null,null,null,null,null,null,null,null,null,null,null,null,null,null,null,null,null,null,null,null,null,null,null,null,null,null,null,null,null,null,null,null,null,null,null,null,null,null,null,0,0,0]
[null,null,0,null,0,0,null,null,null,null,null,null,null,"BUĞDAY, ELEK ALTI",28.330204949044671,null,"KM, en az %",{"$f":"H5","v":88},{"$f":"J5","v":89.033825193404823},null,null,null,null,null,null,null,null,"BA",null,null,null,null,null,null,null,null,null,null,null,null,null,null,null,null,null,null,null,null,null,null,null,null,null,null,null,null,null,null,null,null,null,null,null,null,null,null,null,null,null,null,null,null,null,null,null,null,null,null,0,0,0]
[null,null,0,null,0,0,null,null,null,null,null,null,null,"","",null,"HP, en az %",{"$f":"H6","v":12},{"$f":"J6","v":12.000000004404747},{"$f":"L6","v":13.478023636901591},{"$f":"K6","v":"TAMAM"},null,null,null,null,null,null,"BB",null,null,null,null,null,null,null,null,null,null,null,null,null,null,null,null,null,null,null,null,null,null,null,null,null,null,null,null,null,null,null,null,null,null,null,null,null,null,null,null,null,null,null,null,null,null,null,null,null,null,0,0,0]
[null,null,0,null,0,0,null,null,null,null,null,null,null,"","",null,"ME, en az Mcal/kg",{"$f":"H7","v":2.75},{"$f":"J7","v":2.7500000016781301},{"$f":"L7","v":3.0887137508743545},{"$f":"K7","v":"TAMAM"},null,null,null,null,null,null,"BC",null,null,null,null,null,null,null,null,null,null,null,null,null,null,null,null,null,null,null,null,null,null,null,null,null,null,null,null,null,null,null,null,null,null,null,null,null,null,null,null,null,null,null,null,null,null,null,null,null,null,0,0,0]
[null,null,0,null,0,0,null,null,null,null,null,null,null,"","",null,"Ca, en az %",{"$f":"H8","v":0.6},{"$f":"J8","v":0.86194414397735664},{"$f":"L8","v":0.96810862849595414},{"$f":"K8","v":"TAMAM"},null,null,null,null,null,null,"BD",null,null,null,null,null,null,null,null,null,null,null,null,null,null,null,null,null,null,null,null,null,null,null,null,null,null,null,null,null,null,null,null,null,null,null,null,null,null,null,null,null,null,null,null,null,null,null,null,null,null,0,0,0]
[null,null,0,null,0,0,null,null,null,null,null,null,null,"","",null,"Ca, en çok %",{"$f":"I8","v":1.6},null,null,null,null,null,null,null,null,null,"BE",null,null,null,null,null,null,null,null,null,null,null,null,null,null,null,null,null,null,null,null,null,null,null,null,null,null,null,null,null,null,null,null,null,null,null,null,null,null,null,null,null,null,null,null,null,null,null,null,null,null,0,0,0]
[null,null,0,null,0,0,null,null,null,null,null,null,null,"","",null,"P,enaz %",{"$f":"H9","v":0.4},{"$f":"J9","v":0.40099999986486234},{"$f":"L9","v":0.45039062288269111},{"$f":"K9","v":"TAMAM"},null,null,null,null,null,null,"BF",null,null,null,null,null,null,null,null,null,null,null,null,null,null,null,null,null,null,null,null,null,null,null,null,null,null,null,null,null,null,null,null,null,null,null,null,null,null,null,null,null,null,null,null,null,null,null,null,null,null,0,0,0]
[null,null,0,null,0,0,null,null,null,null,null,null,null,"","",null,"Na, en az %",{"$f":"H10","v":0.1},{"$f":"J10","v":0.40100000000000013},{"$f":"L10","v":0.45039062303447364},{"$f":"K10","v":"TAMAM"},null,null,null,null,null,null,"BG",null,null,null,null,null,null,null,null,null,null,null,null,null,null,null,null,null,null,null,null,null,null,null,null,null,null,null,null,null,null,null,null,null,null,null,null,null,null,null,null,null,null,null,null,null,null,null,null,null,null,0,0,0]
[null,null,0,null,0,0,null,null,null,null,null,null,null,"SOYA KÜSPESİ, SOLVENT,  48 HP",21.512664605119522,null,"Na, en çok %",{"$f":"I10","v":0.4},null,null,null,null,null,null,null,null,null,"BH",null,null,null,null,null,null,null,null,null,null,null,null,null,null,null,null,null,null,null,null,null,null,null,null,null,null,null,null,null,null,null,null,null,null,null,null,null,null,null,null,null,null,null,null,null,null,null,null,null,null,0,0,0]
[null,null,null,null,null,null,null,null,null,null,null,null,null,"","",null,"HS, en çok %",{"$f":"I11","v":12},{"$f":"J11","v":4.3269822516763163},{"$f":"L11","v":4.8599307535950249},{"$f":"K11","v":"TAMAM"}]
[null,null,null,null,null,null,null,null,null,null,null,null,null,"","",null,"HK, ençok %",{"$f":"I12","v":9},5.3575546370413427,6.0174373339608049,"TAMAM"]
[null,null,null,null,null,null,null,null,null,null,null,null,null,"","",null,"HY, %",null,2.8091165287316362,3.1551115799298732,""]
[null,null,null,null,null,null,null,null,null,null,null,null,null,"KİREÇTAŞI",1.6752967582741556,null,"NDF, %",{"$f":"H11","v":1.2000000000000002},16.008121191891366,17.979819643958383,0]
[null,null,null,null,null,null,null,null,null,null,null,null,null,"DİKALSİYUM FOSFAT (DCP)",0.78325043914837378,null,"ADF, %",{"$f":"H14","v":0},5.6876495538403589,6.3881895914112325,0]
[null,null,null,null,null,null,null,null,null,null,null,null,null,"TUZ",0.17699860995848216,null,"Bypass Prot,% HP",null,26.122429844182086,29.339893896996248,0]
[null,null,null,null,null,null,null,null,null,null,null,null,null,"VİTAMİN-MİNERAL KARMASI",0.1,null,"Nişasta, %",null,50.112238713759147,56.284494802848485,0]
[null,null,null,null,null,null,null,null,null,null,null,null,null,"","",null,"TSBM, %",null,71.623091152723887,80.444809595835906,0]
[null,null,null,null,null,null,null,null,null,null,null,null,null,"","",null,null,null,null,null,null,null,null,null,null,null,null,null,null,"Yemlerin ADI"]
[null,null,null,null,null,null,null,null,null,null,null,null,null,"",""]
[null,null,null,null,null,null,null,null,null,null,null,null,null,"","",null,null,null,"12.04.2016"]
[null,null,null,null,null,null,null,null,null,null,null,null,null,"","",null,null,null,"Hazırlayan"]
[null,null,null,null,null,null,null,null,null,null,null,null,null,"","",null,null,null,"Prof.Dr. Fatma İNAL"]
[null,null,null,null,null,null,null,null,null,null,null,null,null,"",""]
[null,null,null,null,null,null,null,null,null,null,null,null,null,"",""]
[null,null,null,null,null,null,null,null,null,null,null,null,null,"",""]
[null,null,null,null,null,null,null,null,null,null,null,null,null,"",""]
[null,null,null,null,null,null,null,null,null,null,null,null,null,"Toplam",{"$f":"SUM(O23:O48)","v":100.00000022211134},{"$f":"SUM(P23:P48)","v":0}]
[]
[null,null,null,null,null,null,null,null,null,null,null,null,null,"Kurum Adı"]
[null,null,null,null,null,null,null,null,null,null,null,null,null,"S.Ü. VETERİNER FAKÜLTESİ"]
[]
[]
[]
[]
[]
[]
[]
[]
[]
[]
[]
[]
[]
[]
[null,null,null,null,null,null,null,null,null,null,null,null,null,null,null,null,null,null,null,null,null,null,null,null,null,null,null,null,null,"Yemlerin MİKTARI"]
[]
[]
[]
[]
[]
[]
[]
[]
[]
[]
[]
[]
[]
[]
[]
[]
[]
[]
[]
[]
[]
[]
[]
[]
[]
[]
[null,null,null,null,null,null,null,null,null,null,null,null,null,null,null,null,null,null,null,null,null,null,null,null,null,null,null,null,null,"Fiyat"]
[]
[]
[]
[]
[]
[]
[]
[]
[]
[]
[]
[]
[]
[]
[]
[]
[]
[]
[]
[]
[]
[]
[]
[]
[]
[]
[null,null,null,null,null,null,null,null,null,null,null,null,null,null,null,null,null,null,null,null,null,null,null,null,null,null,null,null,null,"En az"]
[]
[]
[]
[]
[]
[]
[]
[]
[]
[]
[]
[]
[]
[]
[]
[]
[]
[]
[]
[]
[]
[]
[]
[]
[]
[]
[null,null,null,null,null,null,null,null,null,null,null,null,null,null,null,null,null,null,null,null,null,null,null,null,null,null,null,null,null,"En çok"]

{"sheet":"Rapor","index":1,"n_rows":168,"n_cols":105,"rows_kept":168,"cut":false,"hidden":false,"merged":[[48,47,48,48],[50,47,50,48],[50,49,50,51],[2,21,3,21],[0,1,1,1],[0,4,0,6],[0,7,0,9],[2,1,3,1],[2,4,2,5]]}
[null,"EN DÜŞÜK MALİYETLİ KARMA YEM ÇÖZÜMÜ",null,null,null,null,null,{"$f":"TODAY()","v":"2024-11-12"},null,null,null,null,null,null,null,null,null,null,null,null,null,null,null,null,null,null,null,null,null,null,null,null,null,null,null,null,null,null,null,null,null,null,null,null,null,null,null,null,null,null,null,null,null,null,null,null,null,null,null,null,null,null,null,"DEĞERLER KURU MADDE ESASINA GÖRE VERİLMİŞTİR.",null,null,null,null,null,null,null,null,null,null,null,null,null,null,null,null,null,null,null,null,null,null,null,null,null,null,null,null,null,null,null,null,null,null,null,null,null,null,null,null,"Seçilen Yemler"]
[null,null,null,"Fiyat",null,null,null,"İHTİYAÇ",null,null,null,null,null,null,null,null,null,null,null,null,null,null,null,null,null,null,null,null,null,null,null,null,null,null,null,null,null,null,null,null,null,null,null,null,null,null,null,"HAYVAN","KM,enaz","HP,enaz","ME,enaz","Ca,enaz","Ca,ençok","P,enaz","Na,enaz","Na,ençok","HS,ençok","NDF,%","ADF,%","HK,ençok",null,"YEMLER",2,{"$f":"BK2+1","v":3},{"$f":"BL2+1","v":4},5,6,7,8,9,10,11,12,13,14,15,16,{"$f":"BY2+1","v":17},{"$f":"BZ2+1","v":18},null,null,null,null,null,null,null,null,null,null,null,null,null,null,null,null,null,null,null,null,null,null,null,null,null,"Toplu yem seçimi için kullanılır"]
[null,"VERİLECEK YEMLER",null,"TL/kg","Yemler için",null,"BESİN MADDESİ","En az","En çok","RASYON","KM'de","SONUÇ",null,null,null,null,null,null,null,null,null,"VERİLECEK YEMLER",{"$f":"SUM(W5:W31)","v":100},null,null,null,null,null,null,null,null,null,null,null,null,{"$f":"SUM(AJ5:AJ31)","v":89.033825193404823},12.000000004404747,2.7500000016781301,0.86194414397735664,0.40099999986486234,0.40100000000000013,4.3269822516763163,16.008121191891366,5.6876495538403589,5.3575546370413427,26.122429844182086,null,"KOYUN",null,null,null,null,null,null,null,null,null,null,null,null,null,"ENERJİ KAYNAKLARI","KM, %","HP, %","ME, Mcal/kg","Ca, %","P, %","Na,%","HS, %","NDF,%","ADF,%","HK, %","Fiyat,TL","Enaz","Ençok","RUP,%HP'de","HY, %","Nişasta,%","TSBM,%"]
[null,null,"MİKTAR",{"$f":"KarmaYem!D4","v":8.9901625148338251},"En az","En çok",{"$f":"AJ4","v":"KM, %"},{"$f":"KarmaYem!H5","v":88},null,{"$f":"AJ3","v":89.033825193404823},null,null,null,null,null,null,null,null,null,null,null,null,"MİKTAR","KM","HP","ME","Ca","P","Na","HS","NDF","ADF","HK","RUP",null,"KM, %","HP, %","ME, Mcal/kg","Ca, %","P, %","Na, %","HS, %","NDF, %","ADF, %","HK, %","RUP",null,"KUZU BAŞLANGIÇ YEMİ",88,18,2.8,0.8,2,0.5,0.1,0.4,11,"","",8,null,"ARPA",88,13.5,3.11,0.05,0.38,0.02,5.7,20.8,7.2,2.9,8.5,0,60,20.9,2.1,64,82.7]
[{"$f":"KarmaYem!A5","v":1},{"$f":"KarmaYem!B5","v":"MISIR, 3100"},{"$f":"KarmaYem!C5","v":41.758848377124828},{"$f":"KarmaYem!D5","v":9.5},{"$f":"KarmaYem!E5","v":0},{"$f":"KarmaYem!F5","v":70},{"$f":"AK4","v":"HP, %"},{"$f":"KarmaYem!H6","v":12},{"$f":"KarmaYem!I6","v":12.059999999999999},{"$f":"AK3","v":12.000000004404747},{"$f":"(100*J5)/$J$4","v":13.478023636901591},{"$f":"X34","v":"TAMAM"},null,null,null,null,null,null,null,null,null,{"$f":"KarmaYem!B5","v":"MISIR, 3100"},{"$f":"IF(B5=0,0,C5)","v":41.758848377124828},{"$f":"IF($V5=0,0,VLOOKUP($V5,$BJ$4:$BY$226,BK$2,FALSE))","v":89},{"$f":"IF($V5=0,0,VLOOKUP($V5,$BJ$4:$BY$226,BL$2,FALSE))","v":10},{"$f":"IF($V5=0,0,VLOOKUP($V5,$BJ$4:$BY$226,BM$2,FALSE))","v":3.47},{"$f":"IF($V5=0,0,VLOOKUP($V5,$BJ$4:$BY$226,BN$2,FALSE))","v":0.3},{"$f":"IF($V5=0,0,VLOOKUP($V5,$BJ$4:$BY$226,BO$2,FALSE))","v":0.28999999999999998},{"$f":"IF($V5=0,0,VLOOKUP($V5,$BJ$4:$BY$226,BP$2,FALSE))","v":0.02},{"$f":"IF($V5=0,0,VLOOKUP($V5,$BJ$4:$BY$226,BQ$2,FALSE))","v":2.6},{"$f":"IF($V5=0,0,VLOOKUP($V5,$BJ$4:$BY$226,BR$2,FALSE))","v":9.5},{"$f":"IF($V5=0,0,VLOOKUP($V5,$BJ$4:$BY$226,BS$2,FALSE))","v":3.4},{"$f":"IF($V5=0,0,VLOOKUP($V5,$BJ$4:$BY$226,BT$2,FALSE))","v":1.5},{"$f":"IF($V5=0,0,VLOOKUP($V5,$BJ$4:$BY$226,BX$2,FALSE))","v":42.15},null,{"$f":"IF($V5=0,0,W5*X5/100)","v":37.1653750556411},{"$f":"IF($V5=0,0,$AJ5*Y5/100)","v":3.7165375055641103},{"$f":"IF($V5=0,0,$AJ5*Z5/100)","v":1.2896385144307461},{"$f":"IF($V5=0,0,$AJ5*AA5/100)","v":0.1114961251669233},{"$f":"IF($V5=0,0,$AJ5*AB5/100)","v":0.10777958766135919},{"$f":"IF($V5=0,0,$AJ5*AC5/100)","v":7.4330750111282198E-3},{"$f":"IF($V5=0,0,$AJ5*AD5/100)","v":0.96629975144666858},{"$f":"IF($V5=0,0,$AJ5*AE5/100)","v":3.5307106302859044},{"$f":"IF($V5=0,0,$AJ5*AF5/100)","v":1.2636227518917975},{"$f":"IF($V5=0,0,$AJ5*AG5/100)","v":0.55748062583461644},{"$f":"IF($V5=0,0,$AJ5*AH5/100)","v":15.665205585952725},null,"KUZU BÜYÜTME YEMİ",88,16,2.5,0.8,2,0.5,0.1,0.4,10,null,null,10,null,"ARPA MALT ÇİLİ",93,24.6,2.69,0.19,0.68,0.02,15.3,47,21.8,7.4,9,0,20,24.3,2.2999999999999998,17,66.400000000000006]
[{"$f":"KarmaYem!A6","v":1},{"$f":"KarmaYem!B6","v":"ARPA"},{"$f":"KarmaYem!C6","v":40},{"$f":"KarmaYem!D6","v":8.5},{"$f":"KarmaYem!E6","v":0},{"$f":"KarmaYem!F6","v":60},{"$f":"AL4","v":"ME, Mcal/kg"},{"$f":"KarmaYem!H7","v":2.75},{"$f":"KarmaYem!I7","v":2.7637499999999999},{"$f":"AL3","v":2.7500000016781301},3.0887137508743545,"TAMAM",null,null,null,null,null,null,null,null,null,{"$f":"KarmaYem!B6","v":"ARPA"},{"$f":"IF(B6=0,0,C6)","v":40},88,13.5,3.11,0.05,0.38,0.02,5.7,20.8,7.2,2.9,20.9,null,35.200000000000003,4.7520000000000007,1.0947200000000001,1.7600000000000001E-2,0.13376000000000002,7.0400000000000011E-3,2.0064000000000002,7.321600000000001,2.5344000000000002,1.0207999999999999,{"$f":"IF($V6=0,0,$AJ6*AH6/100)","v":7.3568000000000007},null,"KUZU BESİ YEMİ",88,15,2.8,0.6,1.6,0.4,0.1,0.4,12,null,null,9,null,"ARPA, SAHİL",89,10.8,3.18,0.06,0.39,0.03,7.1,19,12.1,2.7,8.5,0,60,20.9,2.1,55,82]
[{"$f":"KarmaYem!A7","v":1},{"$f":"KarmaYem!B7","v":"BUĞDAY KEPEĞİ, KABA"},{"$f":"KarmaYem!C7","v":10.617003580231886},{"$f":"KarmaYem!D7","v":7},{"$f":"KarmaYem!E7","v":0},{"$f":"KarmaYem!F7","v":15},{"$f":"AM4","v":"Ca, %"},{"$f":"KarmaYem!H8","v":0.6},{"$f":"KarmaYem!I8","v":1.6},{"$f":"AM3","v":0.86194414397735664},0.96810862849595414,"TAMAM",null,null,null,null,null,null,null,null,null,{"$f":"KarmaYem!B7","v":"BUĞDAY KEPEĞİ, KABA"},10.617003580231886,89,17.100000000000001,2.57,0.13,1.38,0.06,11.3,45.9,13.5,6.7,17.649999999999999,null,9.4491331864063781,1.6158017748754907,0.2428427228906439,1.2283873142328292E-2,0.13039803797240801,5.6694799118438268E-3,1.0677520500639208,4.3371521325605276,1.2756329801648609,0.63309192348922738,1.6677720074007256,null,"TOKLU BESİ YEMİ",88,12,2.75,0.6,1.6,0.4,0.1,0.4,12,null,null,9,null,"ARPA, ZAYIF",88,11.7,2.94,0.05,0.38,0.03,11.4,19,12.1,2.7,8,0,60,20.9,2.1,55,82]
[{"$f":"KarmaYem!A8","v":2},{"$f":"KarmaYem!B8","v":"SOYA KÜSPESİ, SOLVENT,  44 HP"},{"$f":"KarmaYem!C8","v":4.498123236510625},{"$f":"KarmaYem!D8","v":17},{"$f":"KarmaYem!E8","v":0},{"$f":"KarmaYem!F8","v":40},{"$f":"AN4","v":"P, %"},{"$f":"KarmaYem!H9","v":0.4},null,{"$f":"AN3","v":0.40099999986486234},0.45039062288269111,"TAMAM",null,null,null,null,null,null,null,null,null,{"$f":"KarmaYem!B8","v":"SOYA KÜSPESİ, SOLVENT,  44 HP"},4.498123236510625,91,46.8,3,0.32,0.71,0.04,7,20,15,6.6,35,null,4.0932921452246687,1.9156607239651446,0.12279876435674004,1.3098534864718941E-2,2.9062374231095145E-2,1.6373168580898676E-3,0.28653045016572681,0.8186584290449338,0.61399382178370032,0.2701572815848281,1.4326522508286339,null,"KOYUN SÜT YEMİ",88,13,2.4,0.6,1.2,0.4,0.3,0.6,14,null,null,9,null,"AYÇİÇEĞİ TOHUMU",91.8,19.2,4.71,0.71,0.51,0.01,24.1,24,16.7,5.0999999999999996,45,0,10,9.5500000000000007,41.9,1.3,122.3]
[{"$f":"KarmaYem!A9","v":3},{"$f":"KarmaYem!B9","v":"MERMER TOZU"},{"$f":"KarmaYem!C9","v":1.9120692183875301},{"$f":"KarmaYem!D9","v":2},{"$f":"KarmaYem!E9","v":0},{"$f":"KarmaYem!F9","v":7},{"$f":"AO4","v":"Na, %"},{"$f":"KarmaYem!H10","v":0.1},{"$f":"KarmaYem!I10","v":0.4},{"$f":"AO3","v":0.40100000000000013},0.45039062303447364,"TAMAM",null,null,null,null,null,null,null,null,null,{"$f":"KarmaYem!B9","v":"MERMER TOZU"},1.9120692183875301,100,0,0,37,0,0,{"$f":"IF($V9=0,0,VLOOKUP($V9,$BJ$4:$BY$226,BQ$2,FALSE))","v":0},0,0,100,0,null,1.9120692183875301,0,0,0.7074656108033861,0,0,{"$f":"IF($V9=0,0,$AJ9*AD9/100)","v":0},0,0,1.9120692183875301,0,null,"KEÇİ SÜT YEMİ",88,16,2.5,0.75,1.2,0.4,0.3,0.6,16,null,null,9,null,"BADEM KABUKLARI, ÖĞÜTÜLMÜŞ",92,4.8,1.92,0.2,0.14000000000000001,0.04,43.1,36.799999999999997,28.7,6.1,3,0,5,53.15,2.9,7.4,55]
[{"$f":"KarmaYem!A10","v":3},{"$f":"KarmaYem!B10","v":"TUZ"},{"$f":"KarmaYem!C10","v":0.96395558774514023},{"$f":"KarmaYem!D10","v":1.5},{"$f":"KarmaYem!E10","v":0.25},{"$f":"KarmaYem!F10","v":1},{"$f":"AP4","v":"HS, %"},{"$f":"KarmaYem!H11","v":1.2000000000000002},{"$f":"KarmaYem!I11","v":12},{"$f":"AP3","v":4.3269822516763163},4.8599307535950249,"TAMAM",null,null,null,null,null,null,null,null,null,{"$f":"KarmaYem!B10","v":"TUZ"},0.96395558774514023,100,0,0,0,0,39.340000000000003,0,0,0,100,0,null,0.96395558774514034,0,0,0,0,0.37922012821893825,0,0,0,0.96395558774514034,0,null,null,null,null,null,null,null,null,null,null,null,null,null,null,null,"BAKLA",89,24.7,2.98,0.12,0.45,0.01,4.7,13.7,9.6999999999999993,4,55,0,15,25,1.2,41,84.1,null,null,null,null,null,null,null,null,null,null,null,null,null,null,null,null,null,null,null,null,null,null,null,null,null,"MERMER TOZU"]
[{"$f":"KarmaYem!A11","v":3},{"$f":"KarmaYem!B11","v":"VİTAMİN-MİNERAL KARMASI"},{"$f":"KarmaYem!C11","v":0.25},{"$f":"KarmaYem!D11","v":25},{"$f":"KarmaYem!E11","v":0.25},{"$f":"KarmaYem!F11","v":0.25},{"$f":"AS4","v":"HK, %"},null,{"$f":"KarmaYem!I12","v":9},{"$f":"AS3","v":5.3575546370413427},{"$f":"(100*J11)/$J$4","v":6.0174373339608049},{"$f":"X40","v":"TAMAM"},null,null,null,null,null,null,null,null,null,{"$f":"KarmaYem!B11","v":"VİTAMİN-MİNERAL KARMASI"},0.25,100,0,0,0,0,0,0,0,0,0,0,null,0.25,0,0,0,0,0,0,0,0,0,0,null,null,null,null,null,null,null,null,null,null,null,null,null,null,null,"BEZELYE KABUKLARI",90,12.1,2.4500000000000002,0.75,0.14000000000000001,0,41.7,0,0,3.5,6,0,10,22,0.6,null,82]
[{"$f":"KarmaYem!A12","v":3},{"$f":"KarmaYem!B12","v":"DİKALSİYUM FOSFAT (DCP)"},{"$f":"KarmaYem!C12","v":0},{"$f":"KarmaYem!D12","v":35},{"$f":"KarmaYem!E12","v":0},{"$f":"KarmaYem!F12","v":3},{"$f":"AL34","v":"HY, %"},{"$f":"KarmaYem!H13","v":0},{"$f":"KarmaYem!I13","v":0},{"$f":"AM33","v":2.8091165287316362},{"$f":"(100*J12)/$J$4","v":3.1551115799298732},{"$f":"X41","v":""},null,null,null,null,null,null,null,null,null,{"$f":"KarmaYem!B12","v":"DİKALSİYUM FOSFAT (DCP)"},0,100,0,0,24,18,0.03,0,0,0,100,0,null,0,0,0,0,0,0,0,0,0,0,0,null,null,null,null,null,null,null,null,null,null,null,null,null,null,null,"BEZELYE, YEMLİK",91,25.4,3.25,0.17,0.41,0.04,6.5,12.7,7.2,3.1,20,0,20,22,1.4,42.4,82.2]
[{"$f":"KarmaYem!A13","v":0},{"$f":"KarmaYem!B13","v":0},{"$f":"KarmaYem!C13","v":0},{"$f":"KarmaYem!D13","v":0},{"$f":"KarmaYem!E13","v":0},{"$f":"KarmaYem!F13","v":0},{"$f":"AQ4","v":"NDF, %"},null,null,{"$f":"AQ3","v":16.008121191891366},17.979819643958383,null,null,null,null,null,null,null,null,null,null,{"$f":"KarmaYem!B13","v":0},0,0,0,0,0,0,0,0,0,0,0,0,null,0,0,0,0,0,0,0,0,0,0,0,null,null,null,null,null,null,null,null,null,null,null,null,null,null,null,"BIÇKI TOZU",90,0.3,1.1599999999999999,0,0,0,79.400000000000006,94.39,83.04,0.8,8,0,2,80,0,null,null,null,null,null,null,null,null,null,null,null,null,null,null,null,null,null,null,null,null,null,null,null,null,null,null,null,"TUZ"]
[{"$f":"KarmaYem!A14","v":0},{"$f":"KarmaYem!B14","v":0},{"$f":"KarmaYem!C14","v":0},{"$f":"KarmaYem!D14","v":0},{"$f":"KarmaYem!E14","v":0},{"$f":"KarmaYem!F14","v":0},{"$f":"AR4","v":"ADF, %"},null,null,{"$f":"AR3","v":5.6876495538403589},6.3881895914112325,null,null,null,null,null,null,null,null,null,null,{"$f":"KarmaYem!B14","v":0},0,0,0,0,0,0,0,0,0,0,0,0,null,0,0,0,0,0,0,0,0,0,0,0,null,"SIĞIR",null,null,null,null,null,null,null,null,null,null,null,null,null,"BİRA POSASI,KURU",92,29.4,2.5299999999999998,0.33,0.55000000000000004,0.72,14.4,47.4,22.2,4.3,90,0,5,52.05,5.2,8.3000000000000007,71.3,null,null,null,null,null,null,null,null,null,null,null,null,null,null,null,null,null,null,null,null,null,null,null,null,null,"VİTAMİN-MİNERAL KARMASI"]
[{"$f":"KarmaYem!A15","v":0},{"$f":"KarmaYem!B15","v":0},{"$f":"KarmaYem!C15","v":0},{"$f":"KarmaYem!D15","v":0},{"$f":"KarmaYem!E15","v":0},{"$f":"KarmaYem!F15","v":0},"Bypass Prot,% HP",null,null,{"$f":"AT3","v":26.122429844182086},29.339893896996248,null,null,null,null,null,null,null,null,null,null,{"$f":"KarmaYem!B15","v":0},0,0,0,0,0,0,0,0,0,0,0,0,null,0,0,0,0,0,0,0,0,0,0,0,null,"BUZAĞI BAŞLANGIÇ YEMİ",88,18,2.8,1,2,0.5,0.1,0.4,12,null,null,8,null,"BUĞDAY KEPEĞİ, İNCE",88,18.600000000000001,3.11,0.12,0.92,0.01,7.4,37,10,5.3,8,0,20,20.7,4.5,20,73.3]
[{"$f":"KarmaYem!A16","v":0},{"$f":"KarmaYem!B16","v":0},{"$f":"KarmaYem!C16","v":0},{"$f":"KarmaYem!D16","v":0},{"$f":"KarmaYem!E16","v":0},{"$f":"KarmaYem!F16","v":0},{"$f":"AN34","v":"Nişasta, %"},null,null,{"$f":"AO33","v":50.112238713759147},56.284494802848485,null,null,null,null,null,null,null,null,null,null,{"$f":"KarmaYem!B16","v":0},0,0,0,0,0,0,0,0,0,0,0,0,null,0,0,0,0,0,0,0,0,0,0,0,null,"BUZAĞI BÜYÜTME YEMİ",88,17,2.6,1,2,0.5,0.1,0.4,12,null,null,10,null,"BUĞDAY KEPEĞİ, KABA",89,17.100000000000001,2.57,0.13,1.38,0.06,11.3,45.9,13.5,6.7,7,0,20,17.649999999999999,4.3,14,70]
[{"$f":"KarmaYem!A17","v":0},{"$f":"KarmaYem!B17","v":0},{"$f":"KarmaYem!C17","v":0},{"$f":"KarmaYem!D17","v":0},{"$f":"KarmaYem!E17","v":0},{"$f":"KarmaYem!F17","v":0},{"$f":"AP34","v":"TSBM, %"},null,null,{"$f":"AQ33","v":71.623091152723887},80.444809595835906,null,null,null,null,null,null,null,null,null,null,{"$f":"KarmaYem!B17","v":0},0,0,0,0,0,0,0,0,0,0,0,0,null,0,0,0,0,0,0,0,0,0,0,0,null,"SIĞIR BESİ YEMİ",88,12,2.5,1,2,0.5,0.3,0.6,14,null,null,9,null,"BUĞDAY KEPEĞİ, RAZMOL",89,18.399999999999999,2.97,0.13,0.99,0.01,8.1999999999999993,37,10,5.3,9,0,20,20.7,4.5,20,73.3]
[{"$f":"KarmaYem!A18","v":0},{"$f":"KarmaYem!B18","v":0},{"$f":"KarmaYem!C18","v":0},{"$f":"KarmaYem!D18","v":0},{"$f":"KarmaYem!E18","v":0},{"$f":"KarmaYem!F18","v":0},null,null,null,null,null,null,null,null,null,null,null,null,null,null,null,{"$f":"KarmaYem!B18","v":0},0,0,0,0,0,0,0,0,0,0,0,0,null,0,0,0,0,0,0,0,0,0,0,0,null,"SIĞIR SÜT YEMİ,16,2400",88,16,2.4,0.8,1.5,0.5,0.2,0.4,14,null,null,9,null,"BUĞDAY UNU, BONKALİTE",88,17.399999999999999,3.38,0.05,0.55000000000000004,0.02,2.7,20,6,2.7,10.5,0,10,20.7,3.8,48.2,87]
[{"$f":"KarmaYem!A19","v":0},{"$f":"KarmaYem!B19","v":0},{"$f":"KarmaYem!C19","v":0},{"$f":"KarmaYem!D19","v":0},{"$f":"KarmaYem!E19","v":0},{"$f":"KarmaYem!F19","v":0},null,null,null,null,null,null,null,null,null,null,null,null,null,null,null,{"$f":"KarmaYem!B19","v":0},0,0,0,0,0,0,0,0,0,0,0,0,null,0,0,0,0,0,0,0,0,0,0,0,null,"SIĞIR SÜT YEMİ,18,2600",88,18,2.6,0.8,1.5,0.5,0.2,0.4,14,null,null,9,null,"BUĞDAY, ELEK ALTI",89,15.8,2.71,0.15,0.39,0.05,7.7,37,12,4,8,0,40,22,1.9,33,76]
[{"$f":"KarmaYem!A20","v":0},{"$f":"KarmaYem!B20","v":0},{"$f":"KarmaYem!C20","v":0},{"$f":"KarmaYem!D20","v":0},{"$f":"KarmaYem!E20","v":0},{"$f":"KarmaYem!F20","v":0},null,null,null,null,null,null,null,null,null,null,null,null,null,null,null,{"$f":"KarmaYem!B20","v":0},0,0,0,0,0,0,0,0,0,0,0,0,null,0,0,0,0,0,0,0,0,0,0,0,null,"SIĞIR SÜT YEMİ,20,2800",88,20,2.8,0.8,1.5,0.5,0.2,0.4,14,null,null,9,null,"BUĞDAY, SERT, KIRMIZI KIŞLIK ",88,14.4,3.18,0.05,0.43,0.02,2.8,28,4.4000000000000004,2,10.5,0,40,28,2,70,86.6]
[{"$f":"KarmaYem!A21","v":0},{"$f":"KarmaYem!B21","v":0},{"$f":"KarmaYem!C21","v":0},{"$f":"KarmaYem!D21","v":0},{"$f":"KarmaYem!E21","v":0},{"$f":"KarmaYem!F21","v":0},null,null,null,null,null,null,null,null,null,null,null,null,null,null,null,{"$f":"KarmaYem!B21","v":0},0,0,0,0,0,0,0,0,0,0,0,0,null,0,0,0,0,0,0,0,0,0,0,0,null,"DÜVE YEMİ 1",88,17,2.8,1,2,0.6,0.2,0.4,14,null,null,10,null,"BUĞDAY, SERT, KIRMIZI YAZLIK",88,17.2,3.25,0.04,0.43,0.02,2.9,43.3,12.6,1.9,10.5,0,40,28,2,65,86.6]
[{"$f":"KarmaYem!A22","v":0},{"$f":"KarmaYem!B22","v":0},{"$f":"KarmaYem!C22","v":0},{"$f":"KarmaYem!D22","v":0},{"$f":"KarmaYem!E22","v":0},{"$f":"KarmaYem!F22","v":0},null,null,null,null,null,null,null,null,null,null,null,null,null,null,null,{"$f":"KarmaYem!B22","v":0},0,0,0,0,0,0,0,0,0,0,0,0,null,0,0,0,0,0,0,0,0,0,0,0,null,"DÜVE YEMİ 2",88,16,2.7,1,2,0.6,0.2,0.4,14,null,null,10,null,"BUĞDAY,DURUM",87,15.9,3.06,0.1,0.41,0.01,2.6,18.39,3.79,1.8,11,0,40,22.9,2,70,86.6]
[{"$f":"KarmaYem!A23","v":0},{"$f":"KarmaYem!B23","v":0},{"$f":"KarmaYem!C23","v":0},{"$f":"KarmaYem!D23","v":0},{"$f":"KarmaYem!E23","v":0},{"$f":"KarmaYem!F23","v":0},null,null,null,null,null,null,null,null,null,null,null,null,null,null,null,{"$f":"KarmaYem!B23","v":0},0,0,0,0,0,0,0,0,0,0,0,0,null,0,0,0,0,0,0,0,0,0,0,0,null,"KURU DÖNEM YEMİ",88,14,2.4,0.8,1.5,0.5,0.2,0.4,14,null,null,7,null,"ÇAVDAR",88,13.8,3.07,7.0000000000000007E-2,0.37,0.03,2.5,12.3,4.5999999999999996,1.9,40,0,15,21.01,1.7,60,80]
[{"$f":"KarmaYem!A24","v":0},{"$f":"KarmaYem!B24","v":0},{"$f":"KarmaYem!C24","v":0},{"$f":"KarmaYem!D24","v":0},{"$f":"KarmaYem!E24","v":0},{"$f":"KarmaYem!F24","v":0},null,null,null,null,null,null,null,null,null,null,null,null,null,null,null,{"$f":"KarmaYem!B24","v":0},0,0,0,0,0,0,0,0,0,0,0,0,null,0,0,0,0,0,0,0,0,0,0,0,null,null,null,null,null,null,null,null,null,null,null,null,null,null,null,"ÇAVDAR KEPEĞİ",91,17.5,2.58,0.12,0.9,0,7.6,0,0,5.2,7.5,0,10,20,1.5,19.399999999999999,70]
[{"$f":"KarmaYem!A25","v":0},{"$f":"KarmaYem!B25","v":0},{"$f":"KarmaYem!C25","v":0},{"$f":"KarmaYem!D25","v":0},{"$f":"KarmaYem!E25","v":0},{"$f":"KarmaYem!F25","v":0},null,null,null,null,null,null,null,null,null,null,null,null,null,null,null,{"$f":"KarmaYem!B25","v":0},0,0,0,0,0,0,0,0,0,0,0,0,null,0,0,0,0,0,0,0,0,0,0,0,null,null,null,null,null,null,null,null,null,null,null,null,null,null,null,"DARI,AK",90,12.9,3.21,0.03,0.34,0.04,6,15.8,13.8,3.1,40,0,40,41.65,3.2,52.1,82]
[{"$f":"KarmaYem!A26","v":0},{"$f":"KarmaYem!B26","v":0},{"$f":"KarmaYem!C26","v":0},{"$f":"KarmaYem!D26","v":0},{"$f":"KarmaYem!E26","v":0},{"$f":"KarmaYem!F26","v":0},null,null,null,null,null,null,null,null,null,null,null,null,null,null,null,{"$f":"KarmaYem!B26","v":0},0,0,0,0,0,0,0,0,0,0,0,0,null,0,0,0,0,0,0,0,0,0,0,0,null,null,null,null,null,null,null,null,null,null,null,null,null,null,null,"DOMATES POSASI, KURUTULMUŞ",92,22.9,2.4700000000000002,0.43,0.6,0.31,27.2,54.8,50.5,7.4,45,0,5,27.95,10.6,null,64]
[{"$f":"KarmaYem!A27","v":0},{"$f":"KarmaYem!B27","v":0},{"$f":"KarmaYem!C27","v":0},{"$f":"KarmaYem!D27","v":0},{"$f":"KarmaYem!E27","v":0},{"$f":"KarmaYem!F27","v":0},null,null,null,null,null,null,null,null,null,null,null,null,null,null,null,{"$f":"KarmaYem!B27","v":0},0,0,0,0,0,0,0,0,0,0,0,0,null,0,0,0,0,0,0,0,0,0,0,0,null,null,null,null,null,null,null,null,null,null,null,null,null,null,null,"EKMEK, KURUTULMUŞ",95,13,2.67,7.0000000000000007E-2,0.11,7.0000000000000007E-2,1,3,2,2.8,45,0,5,20.7,3.2,53.5,89.3]
[{"$f":"KarmaYem!A28","v":0},{"$f":"KarmaYem!B28","v":0},{"$f":"KarmaYem!C28","v":0},{"$f":"KarmaYem!D28","v":0},{"$f":"KarmaYem!E28","v":0},{"$f":"KarmaYem!F28","v":0},null,null,null,null,null,null,null,null,null,null,null,null,null,null,null,{"$f":"KarmaYem!B28","v":0},0,0,0,0,0,0,0,0,0,0,0,0,null,0,0,0,0,0,0,0,0,0,0,0,null,"TAVŞAN",null,null,null,null,null,null,null,null,null,null,null,null,null,"ELMA POSASI, KURUTULMUŞ",89,6,2.56,0.13,0.12,0.14000000000000001,19,45,35,4,2,0,5,27.95,5.2,null,65]
[{"$f":"KarmaYem!A29","v":0},{"$f":"KarmaYem!B29","v":0},{"$f":"KarmaYem!C29","v":0},{"$f":"KarmaYem!D29","v":0},{"$f":"KarmaYem!E29","v":0},{"$f":"KarmaYem!F29","v":0},null,null,null,null,null,null,null,null,null,null,null,null,null,null,null,{"$f":"KarmaYem!B29","v":0},0,0,0,0,0,0,0,0,0,0,0,0,null,0,0,0,0,0,0,0,0,0,0,0,null,"TAVŞAN BÜYÜTME YEMİ",88,16,2.2999999999999998,0.8,1.4,0.6,0.3,0.4,10,null,null,10,null,"FİĞ,TANE",91,32.6,2.9,0.15,0.5,0.02,6.3,22,14,3.4,30,0,30,25,1.1299999999999999,48,68.099999999999994]
[{"$f":"KarmaYem!A30","v":0},{"$f":"KarmaYem!B30","v":0},{"$f":"KarmaYem!C30","v":0},{"$f":"KarmaYem!D30","v":0},{"$f":"KarmaYem!E30","v":0},{"$f":"KarmaYem!F30","v":0},null,null,null,null,null,null,null,null,null,null,null,null,null,null,null,{"$f":"KarmaYem!B30","v":0},0,0,0,0,0,0,0,0,0,0,0,0,null,0,0,0,0,0,0,0,0,0,0,0,null,"TAVŞAN EMZİRME YEMİ",88,17,2.5,1.2,2,0.8,0.3,0.4,16,null,null,10,null,"GLİSEROL",88,null,3.64,null,null,null,null,null,null,5,120,0,5,null,null,null,90]
[{"$f":"KarmaYem!A31","v":0},{"$f":"KarmaYem!B31","v":0},{"$f":"KarmaYem!C31","v":0},{"$f":"KarmaYem!D31","v":0},{"$f":"KarmaYem!E31","v":0},{"$f":"KarmaYem!F31","v":0},null,null,null,null,null,null,null,null,null,null,null,null,null,null,null,{"$f":"KarmaYem!B31","v":0},0,0,0,0,0,0,0,0,0,0,0,0,null,0,0,0,0,0,0,0,0,0,0,0,null,"TAVŞAN BESİ YEMİ",88,15,2.5,1.2,1.8,0.8,0.3,0.4,10,null,null,10,null,"KANOLA TOHUMU",89.9,20.5,4.92,0.44,0.68,0.03,6.47,17.8,11.6,4.5999999999999996,35,0,10,18.399999999999999,40.5,3.7,127.4]
[null,null,null,null,null,null,null,null,null,null,null,null,null,null,null,null,null,null,null,null,null,null,null,null,null,null,null,null,null,null,null,null,null,null,null,null,null,null,null,null,null,null,null,null,null,null,null,"DAMIZLIK TAVŞAN YEMİ",88,13,2.1,0.8,1.2,0.6,0.3,0.4,16,null,null,10,null,"KEÇİ BOYNUZU,MEYVE",88,5.8,3.02,0.76,0.12,0.03,9.07,44.77,44.65,3.99,55,0,5,20,33,2.6,79]
[null,null,null,null,null,null,null,null,null,null,null,null,null,null,null,null,null,null,null,null,null,null,"Tolerans","SONUÇ","0-0","0-1","1-0","1=1","1-1","0-0","0-1","1-0","1=1","1-1",null,"min","max",null,{"$f":"SUM(AM35:AM61)","v":2.8091165287316362},null,{"$f":"SUM(AO35:AO61)","v":50.112238713759147},null,{"$f":"SUM(AQ35:AQ61)","v":71.623091152723887},null,null,null,null,null,null,null,null,null,null,null,null,null,null,null,null,null,null,"LÜPEN",91,32,2.82,0.26,0.44,null,15.4,23.5,19.7,5.0999999999999996,25,0,10,30.8,5.5,9,78]
[null,null,null,null,null,null,null,null,null,null,null,null,null,null,null,null,null,null,null,null,null,{"$f":"G5","v":"HP, %"},5.0000000000000001E-3,{"$f":"IF(Y34=1,AD34,IF(Z34=1,AE34,IF(AA34=1,AF34,IF(AB34=1,AG34,IF(AC34=1,AH34,\"\")))))","v":"TAMAM"},{"$f":"IF(AND(H5=0,I5=0)=TRUE,1,0)","v":0},{"$f":"IF(AND(H5=0,I5>0)=TRUE,1,0)","v":0},{"$f":"IF(AND(H5>0,I5=0)=TRUE,1,0)","v":0},{"$f":"IF(AND(H5>0,H5=I5)=TRUE,1,0)","v":0},{"$f":"IF(AND(H5>0,I5>0)=TRUE,1,0)","v":1},{"$f":"\"\"","v":""},{"$f":"IF(J5>I5*(1+W34),\"FAZLA\",\"TAMAM\")","v":"TAMAM"},{"$f":"IF(J5<H5*(1-W34),\"EKSİK\",\"TAMAM\")","v":"TAMAM"},{"$f":"IF(J5<H5*(1-W34),\"EKSİK\",IF(J5>I5*(1+W34),\"FAZLA\",\"TAMAM\"))","v":"TAMAM"},{"$f":"IF(J5<H5*(1-W35),\"EKSİK\",IF(J5>I5*(1+W34),\"FAZLA\",\"TAMAM\"))","v":"TAMAM"},null,{"$f":"IF(Y34=1,0,IF(Z34=1,I5,IF(AA34=1,H5*(1-W34),IF(AB34=1,H5*(1-W34),IF(AC34=1,H5,0)))))","v":12},{"$f":"IF(Y34=1,0,IF(Z34=1,I5*(1+W34),IF(AA34=1,H5*(1+W34),IF(AB34=1,I5*(1+W34),IF(AC34=1,I5,\"\")))))","v":12.059999999999999},"HY, %","HY, %","Nişasta, %","Nişasta, %","TSBM, %","TSBM, %",null,null,null,null,null,null,null,null,null,null,null,null,null,null,null,null,null,null,"MELAS,ŞEKER KAMIŞI",75,5.8,2.86,1,0.11,0.22,0.5,0.4,0.2,13.3,4,0,10,16.399999999999999,0.2,null,81]
[null,null,null,null,null,null,null,null,null,null,null,null,null,null,null,null,null,null,null,null,null,{"$f":"G6","v":"ME, Mcal/kg"},5.0000000000000001E-3,{"$f":"IF(Y35=1,AD35,IF(Z35=1,AE35,IF(AA35=1,AF35,IF(AB35=1,AG35,IF(AC35=1,AH35,\"\")))))","v":"TAMAM"},{"$f":"IF(AND(H6=0,I6=0)=TRUE,1,0)","v":0},{"$f":"IF(AND(H6=0,I6>0)=TRUE,1,0)","v":0},{"$f":"IF(AND(H6>0,I6=0)=TRUE,1,0)","v":0},{"$f":"IF(AND(H6>0,H6=I6)=TRUE,1,0)","v":0},{"$f":"IF(AND(H6>0,I6>0)=TRUE,1,0)","v":1},{"$f":"\"\"","v":""},{"$f":"IF(J6>I6*(1+W35),\"FAZLA\",\"TAMAM\")","v":"TAMAM"},{"$f":"IF(J6<H6*(1-W35),\"EKSİK\",\"TAMAM\")","v":"TAMAM"},{"$f":"IF(J6<H6*(1-W35),\"EKSİK\",IF(J6>I6*(1+W35),\"FAZLA\",\"TAMAM\"))","v":"TAMAM"},{"$f":"IF(J6<H6*(1-W35),\"EKSİK\",IF(J6>I6*(1+W35),\"FAZLA\",\"TAMAM\"))","v":"TAMAM"},null,{"$f":"IF(Y35=1,0,IF(Z35=1,I6,IF(AA35=1,H6*(1-W35),IF(AB35=1,H6*(1-W35),IF(AC35=1,H6,0)))))","v":2.75},{"$f":"IF(Y35=1,0,IF(Z35=1,I6*(1+W35),IF(AA35=1,H6*(1+W35),IF(AB35=1,I6*(1+W35),IF(AC35=1,I6,\"\")))))","v":2.7637499999999999},{"$f":"IF($V5=0,0,VLOOKUP($V5,$BJ$4:$CA$226,BY$2,FALSE))","v":4.3},{"$f":"IF($V5=0,0,$AJ5*AL35/100)","v":1.5981111273925672},{"$f":"IF($V5=0,0,VLOOKUP($V5,$BJ$4:$CA$226,BZ$2,FALSE))","v":70},{"$f":"IF($V5=0,0,$AJ5*AN35/100)","v":26.015762538948771},{"$f":"IF($V5=0,0,VLOOKUP($V5,$BJ$4:$CA$226,CA$2,FALSE))","v":88},{"$f":"IF($V5=0,0,$AJ5*AP35/100)","v":32.705530048964171},null,null,null,null,null,null,null,null,null,null,null,null,null,null,null,null,null,null,"MELAS,ŞEKER PANCARI",78,8.5,2.78,0.17,0.03,1.48,0,0.1,0.1,11.4,4,0,10,16.399999999999999,0.2,null,82.9]
[null,null,null,null,null,null,null,null,null,null,null,null,null,null,null,null,null,null,null,null,null,"Ca, %",3.0000000000000001E-3,"TAMAM",0,0,0,0,1,{"$f":"\"\"","v":""},"TAMAM","TAMAM","TAMAM","TAMAM",null,{"$f":"IF(Y36=1,0,IF(Z36=1,I7,IF(AA36=1,H7*(1-W36),IF(AB36=1,H7*(1-W36),IF(AC36=1,H7,0)))))","v":0.6},1.6,{"$f":"IF($V6=0,0,VLOOKUP($V6,$BJ$4:$CA$226,BY$2,FALSE))","v":2.1},{"$f":"IF($V6=0,0,$AJ6*AL36/100)","v":0.73920000000000019},{"$f":"IF($V6=0,0,VLOOKUP($V6,$BJ$4:$CA$226,BZ$2,FALSE))","v":64},22.528000000000002,{"$f":"IF($V6=0,0,VLOOKUP($V6,$BJ$4:$CA$226,CA$2,FALSE))","v":82.7},{"$f":"IF($V6=0,0,$AJ6*AP36/100)","v":29.110400000000006},null,null,null,null,null,null,null,null,null,null,null,null,null,null,null,null,null,null,"MERCİMEK",88,26.9,3.23,0.09,0.42,0.03,4.9000000000000004,13,6.3,3.8,20,0,30,22,1.6,36,75.2]
[null,null,null,null,null,null,null,null,null,null,null,null,null,null,null,null,null,null,null,null,null,"P, %",3.0000000000000001E-3,"TAMAM",0,0,1,0,0,{"$f":"\"\"","v":""},"FAZLA","TAMAM","FAZLA","FAZLA",null,0.39880000000000004,0.4012,4.3,0.40631272701547422,14,1.3228786460968929,70,{"$f":"IF($V7=0,0,$AJ7*AP37/100)","v":6.6143932304844641},null,null,null,null,null,null,null,null,null,null,null,null,null,null,null,null,null,null,"MISIR GRİZİ",90,12.2,3.41,0.05,0.59,0.01,5.6,21.1,6.2,2.7,9,0,40,48,4.2,40.5,83.1]
[null,null,null,null,null,null,null,null,null,null,null,null,null,null,null,null,null,null,null,null,null,"Na, %",3.0000000000000001E-3,"TAMAM",0,0,0,0,1,{"$f":"\"\"","v":""},"TAMAM","TAMAM","TAMAM","TAMAM",null,0.1,0.4,1.6,6.5492674323594707E-2,6,0.24559752871348009,78,{"$f":"IF($V8=0,0,$AJ8*AP38/100)","v":3.1927678732752418},null,null,null,null,null,null,null,null,null,null,null,null,null,null,null,null,null,null,"MISIR KEPEĞİ",89,9.1999999999999993,2.74,0.04,0.22,0,10.7,61.7,16,2.2000000000000002,9,0,20,27.75,6.3,35,76]
[null,null,null,null,null,null,null,null,null,null,null,null,null,null,null,null,null,null,null,null,null,"HS, %",3.0000000000000001E-3,"TAMAM",0,0,0,0,1,{"$f":"\"\"","v":""},"TAMAM","TAMAM","TAMAM","TAMAM",null,1.2000000000000002,12,0,0,{"$f":"IF($V9=0,0,VLOOKUP($V9,$BJ$4:$CA$226,BZ$2,FALSE))","v":0},{"$f":"IF($V9=0,0,$AJ9*AN39/100)","v":0},0,{"$f":"IF($V9=0,0,$AJ9*AP39/100)","v":0},null,null,null,null,"YEM GRUPLARI",null,null,null,null,null,null,null,null,null,null,null,null,null,"MISIR KEPEĞİ,18 HP",89,19.5,2,0.04,0.22,0,10.7,61.7,16,2.2000000000000002,9,0,20,27.75,6.3,10,76]
[null,null,null,null,null,null,null,null,null,null,null,null,null,null,null,null,null,null,null,null,null,{"$f":"G11","v":"HK, %"},3.0000000000000001E-3,{"$f":"IF(Y40=1,AD40,IF(Z40=1,AE40,IF(AA40=1,AF40,IF(AB40=1,AG40,IF(AC40=1,AH40,\"\")))))","v":"TAMAM"},{"$f":"IF(AND(H11=0,I11=0)=TRUE,1,0)","v":0},{"$f":"IF(AND(H11=0,I11>0)=TRUE,1,0)","v":1},{"$f":"IF(AND(H11>0,I11=0)=TRUE,1,0)","v":0},{"$f":"IF(AND(H11>0,H11=I11)=TRUE,1,0)","v":0},{"$f":"IF(AND(H11>0,I11>0)=TRUE,1,0)","v":0},{"$f":"\"\"","v":""},{"$f":"IF(J11>I11*(1+W40),\"FAZLA\",\"TAMAM\")","v":"TAMAM"},{"$f":"IF(J11<H11*(1-W40),\"EKSİK\",\"TAMAM\")","v":"TAMAM"},{"$f":"IF(J11<H11*(1-W40),\"EKSİK\",IF(J11>I11*(1+W40),\"FAZLA\",\"TAMAM\"))","v":"TAMAM"},{"$f":"IF(J11<H11*(1-W40),\"EKSİK\",IF(J11>I11*(1+W40),\"FAZLA\",\"TAMAM\"))","v":"TAMAM"},null,{"$f":"IF(Y40=1,0,IF(Z40=1,I11,IF(AA40=1,H11*(1-W40),IF(AB40=1,H11*(1-W40),IF(AC40=1,H11,0)))))","v":9},{"$f":"IF(Y40=1,0,IF(Z40=1,I11*(1+W40),IF(AA40=1,H11*(1+W40),IF(AB40=1,I11*(1+W40),IF(AC40=1,I11,\"\")))))","v":9.0269999999999992},0,0,0,0,0,{"$f":"IF($V10=0,0,$AJ10*AP40/100)","v":0},null,null,null,null,"ENERJİ KAYNAKLARI ve YAN ÜRÜNLERİ",null,null,null,null,null,null,null,null,null,null,null,null,null,"MISIR KEPEĞİ+GERM (HOMINY)",90,11,3.2,0,0.5,null,5,21,7,3,10,0,5,48.18,6.1,40.5,89]
[null,null,null,null,null,null,null,null,null,null,null,null,null,null,null,null,null,null,null,null,null,{"$f":"G12","v":"HY, %"},0.03,{"$f":"IF(Y41=1,AD41,IF(Z41=1,AE41,IF(AA41=1,AF41,IF(AB41=1,AG41,IF(AC41=1,AH41,\"\")))))","v":""},{"$f":"IF(AND(H12=0,I12=0)=TRUE,1,0)","v":1},{"$f":"IF(AND(H12=0,I12>0)=TRUE,1,0)","v":0},{"$f":"IF(AND(H12>0,I12=0)=TRUE,1,0)","v":0},{"$f":"IF(AND(H12>0,H12=I12)=TRUE,1,0)","v":0},{"$f":"IF(AND(H12>0,I12>0)=TRUE,1,0)","v":0},{"$f":"\"\"","v":""},{"$f":"IF(J12>I12*(1+W41),\"FAZLA\",\"TAMAM\")","v":"FAZLA"},{"$f":"IF(J12<H12*(1-W41),\"EKSİK\",\"TAMAM\")","v":"TAMAM"},{"$f":"IF(J12<H12*(1-W41),\"EKSİK\",IF(J12>I12*(1+W41),\"FAZLA\",\"TAMAM\"))","v":"FAZLA"},{"$f":"IF(J12<H12*(1-W41),\"EKSİK\",IF(J12>I12*(1+W41),\"FAZLA\",\"TAMAM\"))","v":"FAZLA"},null,{"$f":"IF(Y41=1,0,IF(Z41=1,I12,IF(AA41=1,H12*(1-W41),IF(AB41=1,H12*(1-W41),IF(AC41=1,H12,0)))))","v":0},{"$f":"IF(Y41=1,0,IF(Z41=1,I12*(1+W41),IF(AA41=1,H12*(1+W41),IF(AB41=1,I12*(1+W41),IF(AC41=1,I12,\"\")))))","v":0},0,0,0,0,0,{"$f":"IF($V11=0,0,$AJ11*AP41/100)","v":0},null,null,null,null,"PROTEİN KAYNAKLARI",null,null,null,null,null,null,null,null,null,null,null,null,null,"MISIR KOÇANI (TANELİ), ÖĞÜTÜLMÜŞ ",87,9,3,7.0000000000000007E-2,0.27,0.03,9.4,21.5,8,1.7,3,0,10,42,3.7,20,82]
[null,null,null,null,null,null,null,null,null,null,null,null,null,null,null,null,null,null,null,null,null,{"$f":"G13","v":"NDF, %"},3.0000000000000001E-3,"",{"$f":"IF(AND(H13=0,I13=0)=TRUE,1,0)","v":1},{"$f":"IF(AND(H13=0,I13>0)=TRUE,1,0)","v":0},{"$f":"IF(AND(H13>0,I13=0)=TRUE,1,0)","v":0},{"$f":"IF(AND(H13>0,H13=I13)=TRUE,1,0)","v":0},{"$f":"IF(AND(H13>0,I13>0)=TRUE,1,0)","v":0},{"$f":"\"\"","v":""},{"$f":"IF(J13>I13*(1+W42),\"FAZLA\",\"TAMAM\")","v":"FAZLA"},{"$f":"IF(J13<H13*(1-W42),\"EKSİK\",\"TAMAM\")","v":"TAMAM"},{"$f":"IF(J13<H13*(1-W42),\"EKSİK\",IF(J13>I13*(1+W42),\"FAZLA\",\"TAMAM\"))","v":"FAZLA"},{"$f":"IF(J13<H13*(1-W42),\"EKSİK\",IF(J13>I13*(1+W42),\"FAZLA\",\"TAMAM\"))","v":"FAZLA"},null,{"$f":"IF(Y42=1,0,IF(Z42=1,I13,IF(AA42=1,H13*(1-W42),IF(AB42=1,H13*(1-W42),IF(AC42=1,H13,0)))))","v":0},{"$f":"IF(Y42=1,0,IF(Z42=1,I13*(1+W42),IF(AA42=1,H13*(1+W42),IF(AB42=1,I13*(1+W42),IF(AC42=1,I13,\"\")))))","v":0},0,0,0,0,0,{"$f":"IF($V12=0,0,$AJ12*AP42/100)","v":0},null,null,null,null,"VİTAMİN-MİNERAL ve KATKI MADDELERİ",null,null,null,null,null,null,null,null,null,null,null,null,null,"MISIR, 2800",88,10.1,3.15,0.02,0.28999999999999998,0.02,2.4,9.5,3.4,1.5,8.5,0,70,42.15,4,65,85]
[null,null,null,null,null,null,null,null,null,null,null,null,null,null,null,null,null,null,null,null,null,{"$f":"G14","v":"ADF, %"},3.0000000000000001E-3,"",{"$f":"IF(AND(H14=0,I14=0)=TRUE,1,0)","v":1},{"$f":"IF(AND(H14=0,I14>0)=TRUE,1,0)","v":0},{"$f":"IF(AND(H14>0,I14=0)=TRUE,1,0)","v":0},{"$f":"IF(AND(H14>0,H14=I14)=TRUE,1,0)","v":0},{"$f":"IF(AND(H14>0,I14>0)=TRUE,1,0)","v":0},{"$f":"\"\"","v":""},{"$f":"IF(J14>I14*(1+W43),\"FAZLA\",\"TAMAM\")","v":"FAZLA"},{"$f":"IF(J14<H14*(1-W43),\"EKSİK\",\"TAMAM\")","v":"TAMAM"},{"$f":"IF(J14<H14*(1-W43),\"EKSİK\",IF(J14>I14*(1+W43),\"FAZLA\",\"TAMAM\"))","v":"FAZLA"},{"$f":"IF(J14<H14*(1-W43),\"EKSİK\",IF(J14>I14*(1+W43),\"FAZLA\",\"TAMAM\"))","v":"FAZLA"},null,{"$f":"IF(Y43=1,0,IF(Z43=1,I14,IF(AA43=1,H14*(1-W43),IF(AB43=1,H14*(1-W43),IF(AC43=1,H14,0)))))","v":0},{"$f":"IF(Y43=1,0,IF(Z43=1,I14*(1+W43),IF(AA43=1,H14*(1+W43),IF(AB43=1,I14*(1+W43),IF(AC43=1,I14,\"\")))))","v":0},0,0,0,0,0,{"$f":"IF($V13=0,0,$AJ13*AP43/100)","v":0},null,null,null,null,null,null,null,null,null,null,null,null,null,null,null,null,null,null,"MISIR, 2950",88,10.1,3.35,0.02,0.28999999999999998,0.02,2.4,11,3.4,1.5,9,0,70,42.15,4.0999999999999996,65,87]
[null,null,null,null,null,null,null,null,null,null,null,null,null,null,null,null,null,null,null,null,null,{"$f":"G15","v":"Bypass Prot,% HP"},3.0000000000000001E-3,{"$f":"IF(Y44=1,AD44,IF(Z44=1,AE44,IF(AA44=1,AF44,IF(AB44=1,AG44,IF(AC44=1,AH44,\"\")))))","v":""},{"$f":"IF(AND(H15=0,I15=0)=TRUE,1,0)","v":1},{"$f":"IF(AND(H15=0,I15>0)=TRUE,1,0)","v":0},{"$f":"IF(AND(H15>0,I15=0)=TRUE,1,0)","v":0},{"$f":"IF(AND(H15>0,H15=I15)=TRUE,1,0)","v":0},{"$f":"IF(AND(H15>0,I15>0)=TRUE,1,0)","v":0},{"$f":"\"\"","v":""},{"$f":"IF(J15>I15*(1+W44),\"FAZLA\",\"TAMAM\")","v":"FAZLA"},{"$f":"IF(J15<H15*(1-W44),\"EKSİK\",\"TAMAM\")","v":"TAMAM"},{"$f":"IF(J15<H15*(1-W44),\"EKSİK\",IF(J15>I15*(1+W44),\"FAZLA\",\"TAMAM\"))","v":"FAZLA"},{"$f":"IF(J15<H15*(1-W44),\"EKSİK\",IF(J15>I15*(1+W44),\"FAZLA\",\"TAMAM\"))","v":"FAZLA"},null,{"$f":"IF(Y44=1,0,IF(Z44=1,I15,IF(AA44=1,H15*(1-W44),IF(AB44=1,H15*(1-W44),IF(AC44=1,H15,0)))))","v":0},{"$f":"IF(Y44=1,0,IF(Z44=1,I15*(1+W44),IF(AA44=1,H15*(1+W44),IF(AB44=1,I15*(1+W44),IF(AC44=1,I15,\"\")))))","v":0},0,0,0,0,0,{"$f":"IF($V14=0,0,$AJ14*AP44/100)","v":0},null,null,null,null,"Hayvan Grupları",null,null,null,null,null,null,null,null,null,null,null,null,null,"MISIR, 3100",89,10,3.47,0.3,0.28999999999999998,0.02,2.6,9.5,3.4,1.5,9.5,0,70,42.15,4.3,70,88]
[null,null,null,null,null,null,null,null,null,null,null,null,null,null,null,null,null,null,null,null,null,null,null,null,null,null,null,null,null,null,null,null,null,null,null,null,null,0,0,0,0,0,{"$f":"IF($V15=0,0,$AJ15*AP45/100)","v":0},null,null,null,null,"KOYUN",null,null,null,null,null,null,null,null,null,null,null,null,null,"MISIR POSASI (ŞLEMPE, DDGS)",90.2,29.7,3.03,0.22,0.83,0.3,12.3,38.799999999999997,19.7,5.2,11,0,10,44,10,6,92]
[null,null,null,null,null,null,null,null,null,null,null,null,null,null,null,null,null,null,null,null,null,null,null,null,null,null,null,null,null,null,null,null,null,null,null,null,null,0,0,0,0,0,{"$f":"IF($V16=0,0,$AJ16*AP46/100)","v":0},null,null,null,null,"SIĞIR",null,null,null,null,null,null,null,null,null,null,null,null,null,"NOHUT",91,21.7,3.3,0.2,0.4,0.02,10.5,22.8,13.8,3.3,30,0,20,16,5,36,76]
[null,null,null,null,null,null,null,null,null,null,null,null,null,null,null,null,null,null,null,null,null,null,null,null,null,null,null,null,null,null,null,null,null,null,null,null,null,0,0,0,0,0,{"$f":"IF($V17=0,0,$AJ17*AP47/100)","v":0},null,null,null,null,"TAVŞAN",null,null,null,null,null,null,null,null,null,null,null,null,null,"PAMUK ÇIRÇIR ARTIĞI",90,7.4,1.66,0.83,0.22,0,34.1,70,50.4,16.2,5,0,15,53.15,2,null,44]
[null,null,null,null,null,null,null,null,null,null,null,null,null,null,null,null,null,null,null,null,null,null,null,null,null,null,null,null,null,null,null,null,null,null,null,null,null,0,0,0,0,0,{"$f":"IF($V18=0,0,$AJ18*AP48/100)","v":0},null,null,null,null,null,null,null,null,null,null,null,null,null,null,null,null,null,null,"PAMUK TOHUMU",92,23.6,3.54,0.15,0.73,0.02,19.8,50.3,40.1,4.2,80,0,10,20.3,17.8,null,95]
[null,null,null,null,null,null,null,null,null,null,null,null,null,null,null,null,null,null,null,null,null,null,null,null,null,null,null,null,null,null,null,null,null,null,null,null,null,0,0,0,0,0,{"$f":"IF($V19=0,0,$AJ19*AP49/100)","v":0},null,null,null,null,"Hayvanın Türü :",null,"KOYUN",null,null,null,null,null,null,null,null,null,null,null,"PİRİNÇ",89,8.1999999999999993,3.29,0.03,0.13,7.0000000000000007E-2,0.4,16,1,6,12,0,30,30.15,1.9,41.8,79]
[null,null,null,null,null,null,null,null,null,null,null,null,null,null,null,null,null,null,null,null,null,null,null,null,null,null,null,null,null,null,null,null,null,null,null,null,null,0,0,0,0,0,{"$f":"IF($V20=0,0,$AJ20*AP50/100)","v":0},null,null,null,null,null,null,null,null,null,null,null,null,null,null,null,null,null,null,"PİRİNÇ KEPEĞİ+GERM",91,14.1,2.68,0.08,1.7,0.01,12.8,26.1,13.1,10.4,9,0,10,44.2,17,22,84.8]
[null,null,null,null,null,null,null,null,null,null,null,null,null,null,null,null,null,null,null,null,null,null,null,null,null,null,null,null,null,null,null,null,null,null,null,null,null,0,0,0,0,0,{"$f":"IF($V21=0,0,$AJ21*AP51/100)","v":0},null,null,null,null,"Yemin Çeşidi :",null,"TOKLU BESİ YEMİ",null,null,null,null,null,null,null,null,null,null,null,"RUMEN İÇERİĞİ, KURUTULMUŞ",89,17.600000000000001,2.09,0.79,0.67,0,25,0,0,11,50,0,5,35,14.6]
[null,null,null,null,null,null,null,null,null,null,null,null,null,null,null,null,null,null,null,null,null,null,null,null,null,null,null,null,null,null,null,null,null,null,null,null,null,0,0,0,0,0,{"$f":"IF($V22=0,0,$AJ22*AP52/100)","v":0},null,null,null,null,null,null,null,null,null,null,null,null,null,null,null,null,null,null,"SORGUM,  10 HP",89,11.5,3.11,0.03,0.31,0.01,2.4,10.9,5.9,2,100,0,40,41.65,3,74,80.599999999999994]
[null,null,null,null,null,null,null,null,null,null,null,null,null,null,null,null,null,null,null,null,null,null,null,null,null,null,null,null,null,null,null,null,null,null,null,null,null,0,0,0,0,0,{"$f":"IF($V23=0,0,$AJ23*AP53/100)","v":0},null,null,null,null,null,null,null,null,null,null,null,null,null,null,null,null,null,null,"ŞEK.PAN.POSASI,KURU",91,9.6999999999999993,2.68,0.69,0.1,0.04,19.8,45.8,23.1,4.7,2,0,10,71.25,0.7,1,69.099999999999994]
[null,null,null,null,null,null,null,null,null,null,null,null,null,null,null,null,null,null,null,null,null,null,null,null,null,null,null,null,null,null,null,null,null,null,null,null,null,0,0,0,0,0,{"$f":"IF($V24=0,0,$AJ24*AP54/100)","v":0},null,null,null,null,null,null,null,null,null,null,null,null,null,null,null,null,null,null,"ŞEK.PAN.POSASI,KURU, MELASLI",92,10.1,2.78,0.61,0.1,0.53,16.5,59,26.6,6.2,2,0,10,71.25,0.6,1,78]
[null,null,null,null,null,null,null,null,null,null,null,null,null,null,null,null,null,null,null,null,null,null,null,null,null,null,null,null,null,null,null,null,null,null,null,null,null,0,0,0,0,0,{"$f":"IF($V25=0,0,$AJ25*AP55/100)","v":0},null,null,null,null,null,null,null,null,null,null,null,null,null,null,null,null,null,null,"TAPİOKA",88,2.8,3.11,0.15,0.03,0,4.5,34,8,2.2999999999999998,55,0,30,43.89,0.8,62,80]
[null,null,null,null,null,null,null,null,null,null,null,null,null,null,null,null,null,null,null,null,null,null,null,null,null,null,null,null,null,null,null,null,null,null,null,null,null,0,0,0,0,0,{"$f":"IF($V26=0,0,$AJ26*AP56/100)","v":0},null,null,null,null,null,null,null,null,null,null,null,null,null,null,null,null,null,null,"TRİTİKALE,  2800",89,17.3,3.15,0.04,0.34,0.01,3.3,22,5,2,20,0,40,22.9,2.4,53.5,84]
[null,null,null,null,null,null,null,null,null,null,null,null,null,null,null,null,null,null,null,null,null,null,null,null,null,null,null,null,null,null,null,null,null,null,null,null,null,0,0,0,0,0,{"$f":"IF($V27=0,0,$AJ27*AP57/100)","v":0},null,null,null,null,null,null,null,null,null,null,null,null,null,null,null,null,null,null,"TRİTİKALE,  3450",91,16.5,3.79,0.06,0.33,0.01,4.4000000000000004,22,5,2,30,0,40,22.9,2.4,53.5,84]
[{"$f":"IF(OR(B5=\"\",B5=0)=TRUE,\"\",IF(C5<=0,\"\",A5))","v":1},{"$f":"IF(OR(B5=\"\",B5=0)=TRUE,\"\",IF(C5<=0,\"\",B5))","v":"MISIR, 3100"},{"$f":"IF(OR(B5=\"\",B5=0)=TRUE,\"\",IF(C5<=0,\"\",C5))","v":41.758848377124828},null,null,null,null,null,null,null,null,null,null,null,null,null,null,null,null,null,null,null,null,null,null,null,null,null,null,null,null,null,null,null,null,null,null,0,0,0,0,0,{"$f":"IF($V28=0,0,$AJ28*AP58/100)","v":0},null,null,null,null,null,null,null,null,null,null,null,null,null,null,null,null,null,null,"TURUNÇGİL POSASI, KURU",91,6.7,3.04,1.84,0.12,0.03,12.7,24.2,22.2,7.2,5,0,5,27.95,2.2000000000000002,1.5,79.8]
[{"$f":"IF(OR(B6=\"\",B6=0)=TRUE,\"\",IF(C6<=0,\"\",A6))","v":1},{"$f":"IF(OR(B6=\"\",B6=0)=TRUE,\"\",IF(C6<=0,\"\",B6))","v":"ARPA"},{"$f":"IF(OR(B6=\"\",B6=0)=TRUE,\"\",IF(C6<=0,\"\",C6))","v":40},null,null,null,null,null,null,null,null,null,null,null,null,null,null,null,null,null,null,null,null,null,null,null,null,null,null,null,null,null,null,null,null,null,null,0,0,0,0,0,{"$f":"IF($V29=0,0,$AJ29*AP59/100)","v":0},null,null,null,null,null,null,null,null,null,null,null,null,null,null,null,null,null,null,"ÜZÜM POSASI,KURU",90,13.4,0.73,0.57999999999999996,0.17,0.09,32,53.2,54.4,8.3000000000000007,3,0,3,25,8.4,null,27]
[1,"BUĞDAY KEPEĞİ, KABA",10.617003580231886,null,null,null,null,null,null,null,null,null,null,null,null,null,null,null,null,null,null,null,null,null,null,null,null,null,null,null,null,null,null,null,null,null,null,0,0,0,0,0,{"$f":"IF($V30=0,0,$AJ30*AP60/100)","v":0},null,null,null,null,null,null,null,null,null,null,null,null,null,null,null,null,null,null,"YAĞ,Bitkisel",100,0,8.5,0,0,0,0,0,0,0,45,0,4,0,99,null,184]
[2,"SOYA KÜSPESİ, SOLVENT,  44 HP",4.498123236510625,null,null,null,null,null,null,null,null,null,null,null,null,null,null,null,null,null,null,null,null,null,null,null,null,null,null,null,null,null,null,null,null,null,null,0,0,0,0,0,{"$f":"IF($V31=0,0,$AJ31*AP61/100)","v":0},null,null,null,null,null,null,null,null,null,null,null,null,null,null,null,null,null,null,"YAĞ,Bypass,fraksiyonize",99.95,0,9,0,0,0,0,0,0,0,73,0,5,0,99,null,176]
[3,"MERMER TOZU",1.9120692183875301,null,null,null,null,null,null,null,null,null,null,null,null,null,null,null,null,null,null,null,null,null,null,null,null,null,null,null,null,null,null,null,null,null,null,null,null,null,null,null,null,null,null,null,null,null,null,null,null,null,null,null,null,null,null,null,null,null,null,"YAĞ,Bypass,Ca sabunu",95.3,0,6.27,12,0,0,0,0,0,0,70,0,5,0,84.5,null,163.5]
[3,"TUZ",0.96395558774514023,null,null,null,null,null,null,null,null,null,null,null,null,null,null,null,null,null,null,null,null,null,null,null,null,null,null,null,null,null,null,null,null,null,null,null,null,null,null,null,null,null,null,null,null,null,null,null,null,null,null,null,null,null,null,null,null,null,null,"YAĞ,Kuyruk",99.8,0,8.5,0,0,0,0,0,0,0,400,0,4,0,99.8,null,147.4]
[3,"VİTAMİN-MİNERAL KARMASI",0.25,null,null,null,null,null,null,null,null,null,null,null,null,null,null,null,null,null,null,null,null,null,null,null,null,null,null,null,null,null,null,null,null,null,null,null,null,null,null,null,null,null,null,null,null,null,null,null,null,null,null,null,null,null,null,null,null,null,null,"YULAF KAVUZU",92,4,1.0900000000000001,0.15,0.15,0.04,33.4,74.3,40.5,6.6,3.5,0,5,25,1.5,null,35]
["","","",null,null,null,null,null,null,null,null,null,null,null,null,null,null,null,null,null,null,null,null,null,null,null,null,null,null,null,null,null,null,null,null,null,null,null,null,null,null,null,null,null,null,null,null,null,null,null,null,null,null,null,null,null,null,null,null,null,null,"YULAF, 2175",91,13.1,2.39,7.0000000000000007E-2,0.3,0.06,15.9,29.6,15.9,3.4,7,0,30,13.1,5,57,76]
["","","",null,null,null,null,null,null,null,null,null,null,null,null,null,null,null,null,null,null,null,null,null,null,null,null,null,null,null,null,null,null,null,null,null,null,null,null,null,null,null,null,null,null,null,null,null,null,null,null,null,null,null,null,null,null,null,null,null,null,"YULAF, 2475",89,13.3,2.78,7.0000000000000007E-2,0.68,0.03,12.1,30,14.6,3.3,8.25,0,30,13.1,6,57,76]
["","","",null,null,null,null,null,null,null,null,null,null,null,null,null,null,null,null,null,null,null,null,null,null,null,null,null,null,null,null,null,null,null,null,null,null,null,null,null,null,null,null,null,null,null,null,null,null,null,null,null,null,null,null,null,null,null,null,null,null,"YULAF,KABUKSUZ",90,17.7,3.69,0.08,0.48,0.06,2.8,9.9,3.7,4.5999999999999996,9,0,30,13.1,6.6,57,91]
["","","",null,null,null,null,null,null,null,null,null,null,null,null,null,null,null,null,null,null,null,null,null,null,null,null,null,null,null,null,null,null,null,null,null,null,null,null,null,null,null,null,null,null,null,null,null,null,null,null,null,null,null,null,null,null,null,null,null,null,"ZEYTİN POSASI,ÇEKİRDEKSİZ,KURU",93.27,8.86,1.29,0.57999999999999996,0.17,0.09,null,70.260000000000005,57.99,5.81,45,0,2,82.5,10.84,null,40]
["","","",null,null,null,null,null,null,null,null,null,null,null,null,null,null,null,null,null,null,null,null,null,null,null,null,null,null,null,null,null,null,null,null,null,null,null,null,null,null,null,null,null,null,null,null,null,null,null,null,null,null,null,null,null,null,null,null,null,null,"ZEYTİN POSASI,ÇEKİRDEKLİ,KURU",94.2,7.06,0.09,0.57999999999999996,1.7000000000000001E-2,0.09,null,75.92,61.71,4.8600000000000003,45,0,2,84.5,7.79,null,32]
["","",""]
["","",""]
["","",""]
["","",""]
["","",""]
["","",""]
["","",""]
["","",""]
["","",""]
["","","",null,null,null,null,null,null,null,null,null,null,null,null,null,null,null,null,null,null,null,null,null,null,null,null,null,null,null,null,null,null,null,null,null,null,null,null,null,null,null,null,null,null,null,null,null,null,null,null,null,null,null,null,null,null,null,null,null,null,"PROTEİN KAYNAKLARI","KM, %","HP, %","ME, Mcal/kg","Ca, %","P, %","Na,%","HS, %","NDF,%","ADF,%","HK, %","Fiyat,TL","Enaz","Ençok","RUP,%HP'de","HY, %","Nişasta,%","TSBM,%"]
["","","",null,null,null,null,null,null,null,null,null,null,null,null,null,null,null,null,null,null,null,null,null,null,null,null,null,null,null,null,null,null,null,null,null,null,null,null,null,null,null,null,null,null,null,null,null,null,null,null,null,null,null,null,null,null,null,null,null,null,"ASPİR KÜSPESİ,PRES",91,22.1,2.2400000000000002,0.27,0.78,0.04,35.4,53.8,39.1,4.7,8.5,0,15,40,9.4,5,60]
["","","",null,null,null,null,null,null,null,null,null,null,null,null,null,null,null,null,null,null,null,null,null,null,null,null,null,null,null,null,null,null,null,null,null,null,null,null,null,null,null,null,null,null,null,null,null,null,null,null,null,null,null,null,null,null,null,null,null,null,"ASPİR KÜSPESİ,SOLVENT",92,25.4,2.0299999999999998,0.37,0.81,0.04,32.5,53.8,39.1,4.7,8.5,0,15,31.15,0.6,5,52.5]
["","","",null,null,null,null,null,null,null,null,null,null,null,null,null,null,null,null,null,null,null,null,null,null,null,null,null,null,null,null,null,null,null,null,null,null,null,null,null,null,null,null,null,null,null,null,null,null,null,null,null,null,null,null,null,null,null,null,null,null,"AYÇİÇEĞİ KÜSPESİ, 23 HP",90,25.9,1.63,0.23,1.03,0.04,35.1,40.299999999999997,30,7.7,11,0,30,13.85,2.4,5,58]
["","","",null,null,null,null,null,null,null,null,null,null,null,null,null,null,null,null,null,null,null,null,null,null,null,null,null,null,null,null,null,null,null,null,null,null,null,null,null,null,null,null,null,null,null,null,null,null,null,null,null,null,null,null,null,null,null,null,null,null,"AYÇİÇEĞİ KÜSPESİ, 26 HP",90,28.8,1.78,0.4,1.03,0.04,27,46,33,7,11,0,30,20.7,2.4,5,60]
[null,null,null,null,null,null,null,null,null,null,null,null,null,null,null,null,null,null,null,null,null,null,null,null,null,null,null,null,null,null,null,null,null,null,null,null,null,null,null,null,null,null,null,null,null,null,null,null,null,null,null,null,null,null,null,null,null,null,null,null,null,"AYÇİÇEĞİ KÜSPESİ, 28 HP",90,31,1.9,0.4,1.03,0.04,27,44,32,7,11,0,30,20.7,2.4,5,61]
[null,null,null,null,null,null,null,null,null,null,null,null,null,null,null,null,null,null,null,null,null,null,null,null,null,null,null,null,null,null,null,null,null,null,null,null,null,null,null,null,null,null,null,null,null,null,null,null,null,null,null,null,null,null,null,null,null,null,null,null,null,"AYÇİÇEĞİ  KÜSPESİ,  30 HP",90,33,2.1800000000000002,0.26,1.22,0.04,22,36,26,7.3,11,0,30,20.7,2.4,5,62]
[null,null,null,null,null,null,null,null,null,null,null,null,null,null,null,null,null,null,null,null,null,null,null,null,null,null,null,null,null,null,null,null,null,null,null,null,null,null,null,null,null,null,null,null,null,null,null,null,null,null,null,null,null,null,null,null,null,null,null,null,null,"AYÇİÇEĞİ  KÜSPESİ,  34 HP",91,37,2.25,0.44,0.97,0.04,20,36,24,8,12,0,30,20.7,2.5,5,64]
[null,null,null,null,null,null,null,null,null,null,null,null,null,null,null,null,null,null,null,null,null,null,null,null,null,null,null,null,null,null,null,null,null,null,null,null,null,null,null,null,null,null,null,null,null,null,null,null,null,null,null,null,null,null,null,null,null,null,null,null,null,"AYÇİÇEĞİ KÜSPESİ,KABUKSUZ,PRES, 40 HP",92,44.2,2.7,0.44,0.98,0.04,14.3,42.9,30.2,7.3,12,0,30,27,13.8,6,74]
[null,null,null,null,null,null,null,null,null,null,null,null,null,null,null,null,null,null,null,null,null,null,null,null,null,null,null,null,null,null,null,null,null,null,null,null,null,null,null,null,null,null,null,null,null,null,null,null,null,null,null,null,null,null,null,null,null,null,null,null,null,"BALIK UNU, RİNGA",92,66.7,2.5299999999999998,5.65,3.16,0.68,1,0,0,19.7,250,0,2,62.45,8,8,79.900000000000006]
[null,null,null,null,null,null,null,null,null,null,null,null,null,null,null,null,null,null,null,null,null,null,null,null,null,null,null,null,null,null,null,null,null,null,null,null,null,null,null,null,null,null,null,null,null,null,null,null,null,null,null,null,null,null,null,null,null,null,null,null,null,"BİRA MAYASI",93,47.1,3.04,0.15,1.47,0.08,3.2,0,3,7,370,0,2,50,1,4.9000000000000004,79]
[null,null,null,null,null,null,null,null,null,null,null,null,null,null,null,null,null,null,null,null,null,null,null,null,null,null,null,null,null,null,null,null,null,null,null,null,null,null,null,null,null,null,null,null,null,null,null,null,null,null,null,null,null,null,null,null,null,null,null,null,null,"ET-KEMİK UNU",93,54,2.7,10.72,5.3,0.71,2.6,35,6,30.4,85,0,2,54.8,10,null,61.9]
[null,null,null,null,null,null,null,null,null,null,null,null,null,null,null,null,null,null,null,null,null,null,null,null,null,null,null,null,null,null,null,null,null,null,null,null,null,null,null,null,null,null,null,null,null,null,null,null,null,null,null,null,null,null,null,null,null,null,null,null,null,"FINDIK KÜSPESİ",90,38.89,2.67,0.22,0.67,null,8.89,19.71,15.92,6.67,11,0,10,30,6.11,5.4,60]
[null,null,null,null,null,null,null,null,null,null,null,null,null,null,null,null,null,null,null,null,null,null,null,null,null,null,null,null,null,null,null,null,null,null,null,null,null,null,null,null,null,null,null,null,null,null,null,null,null,null,null,null,null,null,null,null,null,null,null,null,null,"GUAR UNU",95,42,2.87,0.7,0.64,0.08,12.7,20.7,null,5.8,50,0,10,34,5.3,4.0999999999999996,72]
[null,null,null,null,null,null,null,null,null,null,null,null,null,null,null,null,null,null,null,null,null,null,null,null,null,null,null,null,null,null,null,null,null,null,null,null,null,null,null,null,null,null,null,null,null,null,null,null,null,null,null,null,null,null,null,null,null,null,null,null,null,"HAŞHAŞ KÜSPESİ, PRES",92,36,2.7,3.04,1.4,0.01,13,34.1,23.3,13.9,12,0,10,40,10.3,1.5,60]
[null,null,null,null,null,null,null,null,null,null,null,null,null,null,null,null,null,null,null,null,null,null,null,null,null,null,null,null,null,null,null,null,null,null,null,null,null,null,null,null,null,null,null,null,null,null,null,null,null,null,null,null,null,null,null,null,null,null,null,null,null,"HİNDİSTAN CEVİZİ KÜSPESİ, PRES",92,21.5,2.31,0.21,0.65,0.04,13,56,null,7,13,0,10,38.4,7.4,5,64]
[null,null,null,null,null,null,null,null,null,null,null,null,null,null,null,null,null,null,null,null,null,null,null,null,null,null,null,null,null,null,null,null,null,null,null,null,null,null,null,null,null,null,null,null,null,null,null,null,null,null,null,null,null,null,null,null,null,null,null,null,null,"KAN UNU",92,87.2,2.42,0.32,0.26,0.4,1.1000000000000001,10,2,2.5,70,0,2,74.2,1.2,null,59.8]
[null,null,null,null,null,null,null,null,null,null,null,null,null,null,null,null,null,null,null,null,null,null,null,null,null,null,null,null,null,null,null,null,null,null,null,null,null,null,null,null,null,null,null,null,null,null,null,null,null,null,null,null,null,null,null,null,null,null,null,null,null,"KETEN TOHUMU KÜSPESİ, PRES",91,37.9,3,0.45,0.96,0.15,9.6,25,19,6.4,12,0,30,50,10.199999999999999,9.5,78]
[null,null,null,null,null,null,null,null,null,null,null,null,null,null,null,null,null,null,null,null,null,null,null,null,null,null,null,null,null,null,null,null,null,null,null,null,null,null,null,null,null,null,null,null,null,null,null,null,null,null,null,null,null,null,null,null,null,null,null,null,null,"KETEN TOHUMU KÜSPESİ,SOLVENT",90,38.299999999999997,2.86,0.43,0.89,0.09,10.1,36.1,22.1,6.5,12,0,30,45,1.9,9.5,65.400000000000006]
[null,null,null,null,null,null,null,null,null,null,null,null,null,null,null,null,null,null,null,null,null,null,null,null,null,null,null,null,null,null,null,null,null,null,null,null,null,null,null,null,null,null,null,null,null,null,null,null,null,null,null,null,null,null,null,null,null,null,null,null,null,"KOLZA KÜSPESİ, PRES",92,38.700000000000003,2.71,0.72,1.1399999999999999,7.0000000000000007E-2,13.1,29.8,20.5,7.4,13,0,30,31.15,9.6999999999999993,4,69.900000000000006]
[null,null,null,null,null,null,null,null,null,null,null,null,null,null,null,null,null,null,null,null,null,null,null,null,null,null,null,null,null,null,null,null,null,null,null,null,null,null,null,null,null,null,null,null,null,null,null,null,null,null,null,null,null,null,null,null,null,null,null,null,null,"KOLZA KÜSPESİ, SOLVENT",91,40.6,2.68,0.67,1.04,0,13.2,36,18,7.8,13,0,30,30,4,0.5,74]
[null,null,null,null,null,null,null,null,null,null,null,null,null,null,null,null,null,null,null,null,null,null,null,null,null,null,null,null,null,null,null,null,null,null,null,null,null,null,null,null,null,null,null,null,null,null,null,null,null,null,null,null,null,null,null,null,null,null,null,null,null,"MISIR GLUTEN YEMİ",90,25.6,3,0.36,0.82,0.13,9.6999999999999993,35.5,12.1,6.8,9,0,20,27,3.2,18,74.099999999999994]
[null,null,null,null,null,null,null,null,null,null,null,null,null,null,null,null,null,null,null,null,null,null,null,null,null,null,null,null,null,null,null,null,null,null,null,null,null,null,null,null,null,null,null,null,null,null,null,null,null,null,null,null,null,null,null,null,null,null,null,null,null,"MISIR GLUTENİ,  46,8 HP",91,46.8,3.18,0.16,0.5,0.1,4.8,37,9,3.4,20,0,30,61.92,3.2,15.8,84.4]
[null,null,null,null,null,null,null,null,null,null,null,null,null,null,null,null,null,null,null,null,null,null,null,null,null,null,null,null,null,null,null,null,null,null,null,null,null,null,null,null,null,null,null,null,null,null,null,null,null,null,null,null,null,null,null,null,null,null,null,null,null,"MISIR GLUTENİ,  67,2 HP",90,67.2,3.51,0.08,0.54,0.05,2.2000000000000002,11.1,8.1999999999999993,3.3,25,0,30,69.2,2.6,17.91,84.4]
[null,null,null,null,null,null,null,null,null,null,null,null,null,null,null,null,null,null,null,null,null,null,null,null,null,null,null,null,null,null,null,null,null,null,null,null,null,null,null,null,null,null,null,null,null,null,null,null,null,null,null,null,null,null,null,null,null,null,null,null,null,"MISIR ÖZÜ KÜSPESİ,PRES",90,19,3,0.09,0.5,0.04,11.5,47.91,14.18,4.2,15,0,30,69.099999999999994,3.27,22.1,74]
[null,null,null,null,null,null,null,null,null,null,null,null,null,null,null,null,null,null,null,null,null,null,null,null,null,null,null,null,null,null,null,null,null,null,null,null,null,null,null,null,null,null,null,null,null,null,null,null,null,null,null,null,null,null,null,null,null,null,null,null,null,"PALMİYE KÜSPESİ, PRES  ",91.2,16.7,2.77,0.28000000000000003,0.6,0.02,19.8,73,44.8,4.7,9.5,0,10,42,5,5.0999999999999996,60]
[null,null,null,null,null,null,null,null,null,null,null,null,null,null,null,null,null,null,null,null,null,null,null,null,null,null,null,null,null,null,null,null,null,null,null,null,null,null,null,null,null,null,null,null,null,null,null,null,null,null,null,null,null,null,null,null,null,null,null,null,null,"PAMUK TOHUMU KÜSPESİ, PRES,  26 HP",90,29,2.2000000000000002,0.2,1,0.05,23,38,28,7.3,12,0,30,42,5,4,60]
[null,null,null,null,null,null,null,null,null,null,null,null,null,null,null,null,null,null,null,null,null,null,null,null,null,null,null,null,null,null,null,null,null,null,null,null,null,null,null,null,null,null,null,null,null,null,null,null,null,null,null,null,null,null,null,null,null,null,null,null,null,"PAMUK TOHUMU KÜSPESİ, PRES,  28 HP",90,31.11,2.2999999999999998,0.2,1,0.05,23,36,27,7.3,13,0,30,42,5,4,60]
[null,null,null,null,null,null,null,null,null,null,null,null,null,null,null,null,null,null,null,null,null,null,null,null,null,null,null,null,null,null,null,null,null,null,null,null,null,null,null,null,null,null,null,null,null,null,null,null,null,null,null,null,null,null,null,null,null,null,null,null,null,"PAMUK TOHUMU KÜSPESİ, PRES,  31 HP",90,34,2.2999999999999998,0.19,1,0.06,20,32,22,6.9,13.5,0,30,42,5,2.1,66]
[null,null,null,null,null,null,null,null,null,null,null,null,null,null,null,null,null,null,null,null,null,null,null,null,null,null,null,null,null,null,null,null,null,null,null,null,null,null,null,null,null,null,null,null,null,null,null,null,null,null,null,null,null,null,null,null,null,null,null,null,null,"PAMUK TOHUMU KÜSPESİ, PRES, 38 HP",93,40.799999999999997,2.2799999999999998,0.21,0.97,7.0000000000000007E-2,14.3,30.8,19.899999999999999,6.7,14.5,0,30,42,5,4.8,73]
[null,null,null,null,null,null,null,null,null,null,null,null,null,null,null,null,null,null,null,null,null,null,null,null,null,null,null,null,null,null,null,null,null,null,null,null,null,null,null,null,null,null,null,null,null,null,null,null,null,null,null,null,null,null,null,null,null,null,null,null,null,"PAMUK TOHUMU KÜSPESİ, PRES,  41 HP",93,44.3,2.71,0.21,1.1599999999999999,7.0000000000000007E-2,12.8,28,20,6.6,15,0,30,42,5,4,80]
[null,null,null,null,null,null,null,null,null,null,null,null,null,null,null,null,null,null,null,null,null,null,null,null,null,null,null,null,null,null,null,null,null,null,null,null,null,null,null,null,null,null,null,null,null,null,null,null,null,null,null,null,null,null,null,null,null,null,null,null,null,"PAMUK TOHUMU KÜSPESİ, SOLVENT,  32 HP",92,35,2.5099999999999998,0.18,1.2,0.06,16,32,22,6.9,13.5,0,30,40,1.8,2.1,63]
[null,null,null,null,null,null,null,null,null,null,null,null,null,null,null,null,null,null,null,null,null,null,null,null,null,null,null,null,null,null,null,null,null,null,null,null,null,null,null,null,null,null,null,null,null,null,null,null,null,null,null,null,null,null,null,null,null,null,null,null,null,"PAMUK TOHUMU KÜSPESİ, SOLVENT,  35 HP",91,39,2.59,0.22,1.21,7.0000000000000007E-2,14.1,30.8,19.899999999999999,6.7,14,0,30,40,1.8,2.1,65]
[null,null,null,null,null,null,null,null,null,null,null,null,null,null,null,null,null,null,null,null,null,null,null,null,null,null,null,null,null,null,null,null,null,null,null,null,null,null,null,null,null,null,null,null,null,null,null,null,null,null,null,null,null,null,null,null,null,null,null,null,null,"PAMUK TOHUMU KÜSPESİ, SOLVENT,  41 HP",91,45.2,2.57,0.18,1.21,7.0000000000000007E-2,13.3,26,20.2,7.1,15,0,30,40,1.8,4.8,66.400000000000006]
[null,null,null,null,null,null,null,null,null,null,null,null,null,null,null,null,null,null,null,null,null,null,null,null,null,null,null,null,null,null,null,null,null,null,null,null,null,null,null,null,null,null,null,null,null,null,null,null,null,null,null,null,null,null,null,null,null,null,null,null,null,"PEYNİR ALTI SUYU TOZU",93,14.2,3.03,0.92,0.82,0.66,0.2,0.3,0.2,9.4,70,0,2,5.3,1,null,81]
[null,null,null,null,null,null,null,null,null,null,null,null,null,null,null,null,null,null,null,null,null,null,null,null,null,null,null,null,null,null,null,null,null,null,null,null,null,null,null,null,null,null,null,null,null,null,null,null,null,null,null,null,null,null,null,null,null,null,null,null,null,"PEYNİR ALTI SUYU TOZU, DÜŞÜK LAKTOZLU",93,17.899999999999999,2.7,1.6,1.18,1.54,0.2,0,0,16.8,70,0,2,5.3,1,null,81]
[null,null,null,null,null,null,null,null,null,null,null,null,null,null,null,null,null,null,null,null,null,null,null,null,null,null,null,null,null,null,null,null,null,null,null,null,null,null,null,null,null,null,null,null,null,null,null,null,null,null,null,null,null,null,null,null,null,null,null,null,null,"SOYA KÜSPESİ, SOLVENT,  44 HP",91,46.8,3,0.32,0.71,0.04,7,20,15,6.6,17,0,40,35,1.6,6,78]
[null,null,null,null,null,null,null,null,null,null,null,null,null,null,null,null,null,null,null,null,null,null,null,null,null,null,null,null,null,null,null,null,null,null,null,null,null,null,null,null,null,null,null,null,null,null,null,null,null,null,null,null,null,null,null,null,null,null,null,null,null,"SOYA KÜSPESİ, SOLVENT,  48 HP",91,51.06,3.31,0.3,0.7,0.04,4.7,14.9,10,6.6,18,0,40,35,1.2,6,80]
[null,null,null,null,null,null,null,null,null,null,null,null,null,null,null,null,null,null,null,null,null,null,null,null,null,null,null,null,null,null,null,null,null,null,null,null,null,null,null,null,null,null,null,null,null,null,null,null,null,null,null,null,null,null,null,null,null,null,null,null,null,"SOYA KÜSPESİ, SOLVENT, 49 HP",90,53.9,3.41,0.28000000000000003,0.7,0.03,4.0999999999999996,9.8000000000000007,6.2,6.4,19,0,40,36.700000000000003,1.2,6,81]
[null,null,null,null,null,null,null,null,null,null,null,null,null,null,null,null,null,null,null,null,null,null,null,null,null,null,null,null,null,null,null,null,null,null,null,null,null,null,null,null,null,null,null,null,null,null,null,null,null,null,null,null,null,null,null,null,null,null,null,null,null,"SOYA KÜSPESİ,PRES, 45 HP",90,46.3,3.61,0.28999999999999998,0.68,0.04,6.7,21.7,10.4,5.5,18,0,40,63.5,7.7,2,88.5]
[null,null,null,null,null,null,null,null,null,null,null,null,null,null,null,null,null,null,null,null,null,null,null,null,null,null,null,null,null,null,null,null,null,null,null,null,null,null,null,null,null,null,null,null,null,null,null,null,null,null,null,null,null,null,null,null,null,null,null,null,null,"SOYA KÜSPESİ, SOLVENT,  46 HP",91,48.93,3.21,0.3,0.7,0.04,4.7,15.2,10.5,6.6,18,0,40,35,1.2,6,80]
[null,null,null,null,null,null,null,null,null,null,null,null,null,null,null,null,null,null,null,null,null,null,null,null,null,null,null,null,null,null,null,null,null,null,null,null,null,null,null,null,null,null,null,null,null,null,null,null,null,null,null,null,null,null,null,null,null,null,null,null,null,"SOYA TOHUM KABUKLARI",91,12.1,2.34,0.22,0.47,0.12,40.1,60.3,44.6,4.8,6,0,10,28,2.1,5.5,67.3]
[null,null,null,null,null,null,null,null,null,null,null,null,null,null,null,null,null,null,null,null,null,null,null,null,null,null,null,null,null,null,null,null,null,null,null,null,null,null,null,null,null,null,null,null,null,null,null,null,null,null,null,null,null,null,null,null,null,null,null,null,null,"SOYA,TAM YAĞLI,İŞLENMİŞ",92,42.8,3.8,0.27,0.65,0.01,5.8,22.1,14.7,5,18,0,10,48,18.8,1.3,98.8]
[null,null,null,null,null,null,null,null,null,null,null,null,null,null,null,null,null,null,null,null,null,null,null,null,null,null,null,null,null,null,null,null,null,null,null,null,null,null,null,null,null,null,null,null,null,null,null,null,null,null,null,null,null,null,null,null,null,null,null,null,null,"SUSAM KÜSPESİ, PRES",92.9,44.4,2.96,1.98,1.27,0.01,7.8,21.3,10.199999999999999,12.4,12,0,10,40,11.1,1.8,88]
[null,null,null,null,null,null,null,null,null,null,null,null,null,null,null,null,null,null,null,null,null,null,null,null,null,null,null,null,null,null,null,null,null,null,null,null,null,null,null,null,null,null,null,null,null,null,null,null,null,null,null,null,null,null,null,null,null,null,null,null,null,"SUSAM KÜSPESİ, SOLVENT",93.7,48.5,2.21,0.91,0.46,0.01,10.1,45.5,18.399999999999999,12.6,12,0,10,30,2.6,1.8,77]
[null,null,null,null,null,null,null,null,null,null,null,null,null,null,null,null,null,null,null,null,null,null,null,null,null,null,null,null,null,null,null,null,null,null,null,null,null,null,null,null,null,null,null,null,null,null,null,null,null,null,null,null,null,null,null,null,null,null,null,null,null,"SÜT TOZU",94,25.4,5.37,1,0.75,0.4,0,0,0,6.3,80,0,2,0,27,null,119]
[null,null,null,null,null,null,null,null,null,null,null,null,null,null,null,null,null,null,null,null,null,null,null,null,null,null,null,null,null,null,null,null,null,null,null,null,null,null,null,null,null,null,null,null,null,null,null,null,null,null,null,null,null,null,null,null,null,null,null,null,null,"SÜT TOZU,YAĞSIZ",94,35.4,3.51,1.36,1.0900000000000001,0.55000000000000004,0.2,0,0,6.9,75,0,2,0,1,null,85]
[null,null,null,null,null,null,null,null,null,null,null,null,null,null,null,null,null,null,null,null,null,null,null,null,null,null,null,null,null,null,null,null,null,null,null,null,null,null,null,null,null,null,null,null,null,null,null,null,null,null,null,null,null,null,null,null,null,null,null,null,null,"ÜRE",99,281,0,0,0,0,0,0,0,0,17,0,1,0]
[null,null,null,null,null,null,null,null,null,null,null,null,null,null,null,null,null,null,null,null,null,null,null,null,null,null,null,null,null,null,null,null,null,null,null,null,null,null,null,null,null,null,null,null,null,null,null,null,null,null,null,null,null,null,null,null,null,null,null,null,null,"ÜRE, OPTIGEN II",99,256,0,0,0,0,0,0,0,0,150,0,1,0]
[null,null,null,null,null,null,null,null,null,null,null,null,null,null,null,null,null,null,null,null,null,null,null,null,null,null,null,null,null,null,null,null,null,null,null,null,null,null,null,null,null,null,null,null,null,null,null,null,null,null,null,null,null,null,null,null,null,null,null,null,null,"YERFISTIĞI İÇ KABUKLARI",92,17,2.37,0.19,0.2,0.01,13,28,20,3,5,0,10,30,22,null,66]
[null,null,null,null,null,null,null,null,null,null,null,null,null,null,null,null,null,null,null,null,null,null,null,null,null,null,null,null,null,null,null,null,null,null,null,null,null,null,null,null,null,null,null,null,null,null,null,null,null,null,null,null,null,null,null,null,null,null,null,null,null,"YERFISTIĞI KÜSPESİ, PRES",93,49,3.3,0.12,0.61,0.13,7.5,14.2,9.4,5.4,12,0,20,27,10.1,8,80]
[null,null,null,null,null,null,null,null,null,null,null,null,null,null,null,null,null,null,null,null,null,null,null,null,null,null,null,null,null,null,null,null,null,null,null,null,null,null,null,null,null,null,null,null,null,null,null,null,null,null,null,null,null,null,null,null,null,null,null,null,null,"YERFISTIĞI KÜSPESİ, SOLVENT",92,52.3,2.78,0.28999999999999998,0.68,0.03,10.8,21.4,13.5,5.8,12,0,20,20,2.5,8,74.8]
[null,null,null,null,null,null,null,null,null,null,null,null,null,null,null,null,null,null,null,null,null,null,null,null,null,null,null,null,null,null,null,null,null,null,null,null,null,null,null,null,null,null,null,null,null,null,null,null,null,null,null,null,null,null,null,null,null,null,null,null,null,"YONCA UNU, %15",90,17.3,2.06,1.37,0.24,0.08,29.4,55.4,37.5,9.9,10,0,20,36.25,2.2999999999999998,3,52]
[null,null,null,null,null,null,null,null,null,null,null,null,null,null,null,null,null,null,null,null,null,null,null,null,null,null,null,null,null,null,null,null,null,null,null,null,null,null,null,null,null,null,null,null,null,null,null,null,null,null,null,null,null,null,null,null,null,null,null,null,null,"YONCA UNU, %17",92,18.899999999999999,2.17,1.52,0.25,0.1,26.2,45,34.299999999999997,11,10,0,20,36.25,3,3,56]
[null,null,null,null,null,null,null,null,null,null,null,null,null,null,null,null,null,null,null,null,null,null,null,null,null,null,null,null,null,null,null,null,null,null,null,null,null,null,null,null,null,null,null,null,null,null,null,null,null,null,null,null,null,null,null,null,null,null,null,null,null,"YOSUN UNU",92.5,7,1.2,1.41,0.28999999999999998,3.65,8,19.899999999999999,12.6,32,95,0,10,20,0.6,null,32]
[null,null,null,null,null,null,null,null,null,null,null,null,null,null,null,null,null,null,null,null,null,null,null,null,null,null,null,null,null,null,null,null,null,null,null,null,null,null,null,null,null,null,null,null,null,null,null,null,null,null,null,null,null,null,null,null,null,null,null,null,null,"YUMURTA UNU",96,49,{"$f":"(1.49/$BK134)*100","v":1.5520833333333333},{"$f":"(0.05/$BK134)*100","v":5.2083333333333336E-2},{"$f":"(0.18/$BK134)*100","v":0.1875},{"$f":"(0.13/$BK134)*100","v":0.13541666666666669},0,null,null,3.8,500,0,10,null,41,null,130]
[]
[]
[]
[]
[]
[]
[]
[]
[]
[]
[]
[]
[]
[]
[]
[]
[]
[]
[]
[]
[null,null,null,null,null,null,null,null,null,null,null,null,null,null,null,null,null,null,null,null,null,null,null,null,null,null,null,null,null,null,null,null,null,null,null,null,null,null,null,null,null,null,null,null,null,null,null,null,null,null,null,null,null,null,null,null,null,null,null,null,null,"VİTAMİN-MİNERAL, KATKILAR","KM, %","HP, %","ME, Mcal/kg","Ca, %","P, %","Na,%","HS, %","NDF,%","ADF,%","HK, %","Fiyat,TL","Enaz","Ençok","RUP,%HP'de","HY, %","Nişasta,%","TSBM,%"]
[null,null,null,null,null,null,null,null,null,null,null,null,null,null,null,null,null,null,null,null,null,null,null,null,null,null,null,null,null,null,null,null,null,null,null,null,null,null,null,null,null,null,null,null,null,null,null,null,null,null,null,null,null,null,null,null,null,null,null,null,null,"AMONYUM SÜLFAT",100,134.1,0,0,0,0,0,0,0,33,9,0,0.3,0]
[null,null,null,null,null,null,null,null,null,null,null,null,null,null,null,null,null,null,null,null,null,null,null,null,null,null,null,null,null,null,null,null,null,null,null,null,null,null,null,null,null,null,null,null,null,null,null,null,null,null,null,null,null,null,null,null,null,null,null,null,null,"DİKALSİYUM FOSFAT (DCP)",100,0,0,24,18,0.03,0,0,0,100,35,0,3,0]
[null,null,null,null,null,null,null,null,null,null,null,null,null,null,null,null,null,null,null,null,null,null,null,null,null,null,null,null,null,null,null,null,null,null,null,null,null,null,null,null,null,null,null,null,null,null,null,null,null,null,null,null,null,null,null,null,null,null,null,null,null,"KALSİYUM KARBONAT",100,0,0,39,0.04,0.06,0,0,0,100,2,0,2,0]
[null,null,null,null,null,null,null,null,null,null,null,null,null,null,null,null,null,null,null,null,null,null,null,null,null,null,null,null,null,null,null,null,null,null,null,null,null,null,null,null,null,null,null,null,null,null,null,null,null,null,null,null,null,null,null,null,null,null,null,null,null,"KAYA FOSFATI",100,0,0,35,13,0.03,0,0,0,100,11,0,2,0]
[null,null,null,null,null,null,null,null,null,null,null,null,null,null,null,null,null,null,null,null,null,null,null,null,null,null,null,null,null,null,null,null,null,null,null,null,null,null,null,null,null,null,null,null,null,null,null,null,null,null,null,null,null,null,null,null,null,null,null,null,null,"KAYA FOSFATI, DÜŞÜK FLORLU",100,0,0,35,14,4.5,0,0,0,100,11,0,2,0]
[null,null,null,null,null,null,null,null,null,null,null,null,null,null,null,null,null,null,null,null,null,null,null,null,null,null,null,null,null,null,null,null,null,null,null,null,null,null,null,null,null,null,null,null,null,null,null,null,null,null,null,null,null,null,null,null,null,null,null,null,null,"KEMİK UNU",96,12,0,24,12,5.69,0,0,0,79.3,75,0,3,0,3.3,null,16]
[null,null,null,null,null,null,null,null,null,null,null,null,null,null,null,null,null,null,null,null,null,null,null,null,null,null,null,null,null,null,null,null,null,null,null,null,null,null,null,null,null,null,null,null,null,null,null,null,null,null,null,null,null,null,null,null,null,null,null,null,null,"KİREÇTAŞI",100,0,0,35,0,0.06,0,0,0,100,2,0,7,0]
[null,null,null,null,null,null,null,null,null,null,null,null,null,null,null,null,null,null,null,null,null,null,null,null,null,null,null,null,null,null,null,null,null,null,null,null,null,null,null,null,null,null,null,null,null,null,null,null,null,null,null,null,null,null,null,null,null,null,null,null,null,"MERMER TOZU",100,0,0,37,0,0,0,0,0,100,2,0,7,0]
[null,null,null,null,null,null,null,null,null,null,null,null,null,null,null,null,null,null,null,null,null,null,null,null,null,null,null,null,null,null,null,null,null,null,null,null,null,null,null,null,null,null,null,null,null,null,null,null,null,null,null,null,null,null,null,null,null,null,null,null,null,"SODYUM BİKARBONAT",100,0,0,0,0,27,0,0,0,100,13.5,0,0.2,0]
[null,null,null,null,null,null,null,null,null,null,null,null,null,null,null,null,null,null,null,null,null,null,null,null,null,null,null,null,null,null,null,null,null,null,null,null,null,null,null,null,null,null,null,null,null,null,null,null,null,null,null,null,null,null,null,null,null,null,null,null,null,"SODYUM KARBONAT,1 sulu",100,0,0,0,0,36.5,0,0,0,100,13.5,0,0.2,0]
[null,null,null,null,null,null,null,null,null,null,null,null,null,null,null,null,null,null,null,null,null,null,null,null,null,null,null,null,null,null,null,null,null,null,null,null,null,null,null,null,null,null,null,null,null,null,null,null,null,null,null,null,null,null,null,null,null,null,null,null,null,"TUZ",100,0,0,0,0,39.340000000000003,0,0,0,100,1.5,0.25,1,0]
[null,null,null,null,null,null,null,null,null,null,null,null,null,null,null,null,null,null,null,null,null,null,null,null,null,null,null,null,null,null,null,null,null,null,null,null,null,null,null,null,null,null,null,null,null,null,null,null,null,null,null,null,null,null,null,null,null,null,null,null,null,"VİTAMİN-MİNERAL KARMASI",100,0,0,0,0,0,0,0,0,0,25,0.25,0.35,0]
[null,null,null,null,null,null,null,null,null,null,null,null,null,null,null,null,null,null,null,null,null,null,null,null,null,null,null,null,null,null,null,null,null,null,null,null,null,null,null,null,null,null,null,null,null,null,null,null,null,null,null,null,null,null,null,null,null,null,null,null,null,"YUMURTA KABUĞU",99.66,4,null,33.630000000000003,0.06,0.05,null,null,null,94.45,70,0,1,null,0.22]